Publisher Label,Publisher URI,"Supplier","Net Amount (£)","Organisational Unit","Merchant Category Code","Purpose","Payment Date"
"Wolverhampton City Council","http://opendatacommunities.org/id/metropolitan-district-council/wolverhampton","ASDA HOME SHOPPING","81.53","Swan Bank","5411","Provisions (Not for resale)","31/05/2016"
"Wolverhampton City Council","http://opendatacommunities.org/id/metropolitan-district-council/wolverhampton","THE YORK HOTEL","42.00","CIN/CP S17 SW Unit - Area 6","7011","Accommodation Costs","31/05/2016"
"Wolverhampton City Council","http://opendatacommunities.org/id/metropolitan-district-council/wolverhampton","WILKIN CHAPMAN","125.00","Central Training","8111","Training Expenses","31/05/2016"
"Wolverhampton City Council","http://opendatacommunities.org/id/metropolitan-district-council/wolverhampton","TRAINLINE","316.20","Customer Services","4112","Public Transport","31/05/2016"
"Wolverhampton City Council","http://opendatacommunities.org/id/metropolitan-district-council/wolverhampton","STONEBRIDGE ASSC COOL","158.32","Central Training","8220","Training Expenses","31/05/2016"
"Wolverhampton City Council","http://opendatacommunities.org/id/metropolitan-district-council/wolverhampton","WWW.SEVERNTRENTSEARCHE","455.00","Disposal Costs","4900","Services - Professional Fees","30/05/2016"
"Wolverhampton City Council","http://opendatacommunities.org/id/metropolitan-district-council/wolverhampton","ROYAL CARPETS","366.67","LAC Transitions Team","5713","Client Allowances","30/05/2016"
"Wolverhampton City Council","http://opendatacommunities.org/id/metropolitan-district-council/wolverhampton","TRAINLINE","18.61","CIN/CP S17 SW Unit - Area 8","4112","Services - Supplies & Services to users","30/05/2016"
"Wolverhampton City Council","http://opendatacommunities.org/id/metropolitan-district-council/wolverhampton","WWW.SEVERNTRENTSEARCHE","455.00","Disposal Costs","4900","Services - Professional Fees","30/05/2016"
"Wolverhampton City Council","http://opendatacommunities.org/id/metropolitan-district-council/wolverhampton","IKEA ONLINE","1912.50","Art Gallery Tea Room","5719","Equipment - Purchase","30/05/2016"
"Wolverhampton City Council","http://opendatacommunities.org/id/metropolitan-district-council/wolverhampton","THE COAL AUTHORITY","653.10","Disposal Costs","9399","Services - Professional Fees","30/05/2016"
"Wolverhampton City Council","http://opendatacommunities.org/id/metropolitan-district-council/wolverhampton","PREMIER INN","214.00","Adoption Team","3811","Services - Supplies & Services to users","30/05/2016"
"Wolverhampton City Council","http://opendatacommunities.org/id/metropolitan-district-council/wolverhampton","NATWEST BANK","200.00","Democratic Support","6011","Public Transport","30/05/2016"
"Wolverhampton City Council","http://opendatacommunities.org/id/metropolitan-district-council/wolverhampton","NETWORK WEST MIDLANDS","84.00","CIN/CP S17 SW Unit - Area 4","9399","Client Transport","30/05/2016"
"Wolverhampton City Council","http://opendatacommunities.org/id/metropolitan-district-council/wolverhampton","ROYAL CARPETS","125.00","LAC Transitions Team","5713","Client Allowances","30/05/2016"
"Wolverhampton City Council","http://opendatacommunities.org/id/metropolitan-district-council/wolverhampton","ROYAL CARPETS","83.33","LAC Transitions Team","5713","Client Allowances","30/05/2016"
"Wolverhampton City Council","http://opendatacommunities.org/id/metropolitan-district-council/wolverhampton","NATWEST BANK","150.00","EIP Locality 8","6011","Equipment - Purchase","30/05/2016"
"Wolverhampton City Council","http://opendatacommunities.org/id/metropolitan-district-council/wolverhampton","Amazon UK Marketplace","6.77","Global Budgets","5942","Books","30/05/2016"
"Wolverhampton City Council","http://opendatacommunities.org/id/metropolitan-district-council/wolverhampton","WWW.SEVERNTRENTSEARCHE","455.00","Disposal Costs","4900","Services - Professional Fees","30/05/2016"
"Wolverhampton City Council","http://opendatacommunities.org/id/metropolitan-district-council/wolverhampton","ROYAL CARPETS","170.83","LAC Transitions Team","5713","Client Allowances","30/05/2016"
"Wolverhampton City Council","http://opendatacommunities.org/id/metropolitan-district-council/wolverhampton","THE YORK HOTEL","126.00","CIN/CP S17 SW Unit - Area 6","7011","Accommodation Costs","30/05/2016"
"Wolverhampton City Council","http://opendatacommunities.org/id/metropolitan-district-council/wolverhampton","Amazon EU","47.68","Northicote Farm","5969","Clothing / Uniforms","30/05/2016"
"Wolverhampton City Council","http://opendatacommunities.org/id/metropolitan-district-council/wolverhampton","Amazon EU","12.90","Global Budgets","5969","Books","30/05/2016"
"Wolverhampton City Council","http://opendatacommunities.org/id/metropolitan-district-council/wolverhampton","WWW.SEVERNTRENTSEARCHE","455.00","Disposal Costs","4900","Services - Professional Fees","30/05/2016"
"Wolverhampton City Council","http://opendatacommunities.org/id/metropolitan-district-council/wolverhampton","KINGSWAYSOFT","557.34","Customer Services","5734","Computing - Purchase of Software","30/05/2016"
"Wolverhampton City Council","http://opendatacommunities.org/id/metropolitan-district-council/wolverhampton","ARGOS RETAIL GROUP","36.66","LAC Transitions Team","5310","Client Allowances","30/05/2016"
"Wolverhampton City Council","http://opendatacommunities.org/id/metropolitan-district-council/wolverhampton","WWW.ADDISONLEE.COM","7.54","Headstart","4121","Client Transport","30/05/2016"
"Wolverhampton City Council","http://opendatacommunities.org/id/metropolitan-district-council/wolverhampton","WWW.ADDISONLEE.COM","10.46","Headstart","4121","Client Transport","30/05/2016"
"Wolverhampton City Council","http://opendatacommunities.org/id/metropolitan-district-council/wolverhampton","ASDA HOME SHOPPING","243.91","Upper Pendeford Farm Childrens Home","5411","Provisions (Not for resale)","30/05/2016"
"Wolverhampton City Council","http://opendatacommunities.org/id/metropolitan-district-council/wolverhampton","FACEBOOK NFXF39WA92","600.06","Communications & Marketing - General","7311","Marketing \ Non-staff advertising","30/05/2016"
"Wolverhampton City Council","http://opendatacommunities.org/id/metropolitan-district-council/wolverhampton","POST OFFICE COUNTER","19.50","CIN/CP S17 SW Unit - Area 3A","9402","Comms - Postage","30/05/2016"
"Wolverhampton City Council","http://opendatacommunities.org/id/metropolitan-district-council/wolverhampton","WM MORRISON 024","200.00","CIN/CP S17 SW Unit - Area 2","5411","Provisions (Not for resale)","30/05/2016"
"Wolverhampton City Council","http://opendatacommunities.org/id/metropolitan-district-council/wolverhampton","Amazon EU","20.83","Customer Services","5969","Equipment - Purchase","30/05/2016"
"Wolverhampton City Council","http://opendatacommunities.org/id/metropolitan-district-council/wolverhampton","GCL760R","2343.00","Delivery & OCE Development","7011","Accommodation Costs","30/05/2016"
"Wolverhampton City Council","http://opendatacommunities.org/id/metropolitan-district-council/wolverhampton","SAINSBURYS 2040","33.74","Duke Street Bungalows","5411","Provisions (Not for resale)","30/05/2016"
"Wolverhampton City Council","http://opendatacommunities.org/id/metropolitan-district-council/wolverhampton","Amazon UK Marketplace","49.88","Northicote Farm","5942","Clothing / Uniforms","30/05/2016"
"Wolverhampton City Council","http://opendatacommunities.org/id/metropolitan-district-council/wolverhampton","IKEA SACAT","162.46","LAC Transitions Team","5719","Client Allowances","30/05/2016"
"Wolverhampton City Council","http://opendatacommunities.org/id/metropolitan-district-council/wolverhampton","Amazon UK Marketplace","8.90","Customer Services","5942","Books","30/05/2016"
"Wolverhampton City Council","http://opendatacommunities.org/id/metropolitan-district-council/wolverhampton","Mimeo","277.55","School Improvement","7338","Books","30/05/2016"
"Wolverhampton City Council","http://opendatacommunities.org/id/metropolitan-district-council/wolverhampton","ASDA HOME SHOPPING","-3.16","Upper Pendeford Farm Childrens Home","5411","Provisions (Not for resale)","30/05/2016"
"Wolverhampton City Council","http://opendatacommunities.org/id/metropolitan-district-council/wolverhampton","ARGOS RETAIL GROUP","60.20","LAC Transitions Team","5310","Client Allowances","30/05/2016"
"Wolverhampton City Council","http://opendatacommunities.org/id/metropolitan-district-council/wolverhampton","ARGOS RETAIL GROUP","112.49","LAC Transitions Team","5310","Client Allowances","30/05/2016"
"Wolverhampton City Council","http://opendatacommunities.org/id/metropolitan-district-council/wolverhampton","IKEA","20.83","LAC Transitions Team","5719","Client Allowances","30/05/2016"
"Wolverhampton City Council","http://opendatacommunities.org/id/metropolitan-district-council/wolverhampton","YOUNGS SHOE REPAIRS LI","5.90","Wolverhampton Indoor and Open Market","7251","Fixtures and Fittings - R&M","30/05/2016"
"Wolverhampton City Council","http://opendatacommunities.org/id/metropolitan-district-council/wolverhampton","WWW.ADDISONLEE.COM","8.37","Headstart","4121","Client Transport","30/05/2016"
"Wolverhampton City Council","http://opendatacommunities.org/id/metropolitan-district-council/wolverhampton","WWW.SEVERNTRENTSEARCHE","455.00","Disposal Costs","4900","Services - Professional Fees","30/05/2016"
"Wolverhampton City Council","http://opendatacommunities.org/id/metropolitan-district-council/wolverhampton","FACEBOOK ZKHBN82F92","40.03","Civic Halls Non Direct Management A/C","7311","Marketing \ Non-staff advertising","30/05/2016"
"Wolverhampton City Council","http://opendatacommunities.org/id/metropolitan-district-council/wolverhampton","REDWINGS LODGE","191.50","CIN/CP S17 SW Unit - Area 2","7011","Services - Supplies & Services to users","30/05/2016"
"Wolverhampton City Council","http://opendatacommunities.org/id/metropolitan-district-council/wolverhampton","TRAINLINE","46.61","Adoption Team","4112","Public Transport","30/05/2016"
"Wolverhampton City Council","http://opendatacommunities.org/id/metropolitan-district-council/wolverhampton","THE QUALITY HOTEL WOLV","34.77","CIN/CP S17 SW Unit - Area 6","7011","Services - Fees and Charges","30/05/2016"
"Wolverhampton City Council","http://opendatacommunities.org/id/metropolitan-district-council/wolverhampton","TRAINLINE","200.63","Assessment Team (West)","4112","Public Transport","27/05/2016"
"Wolverhampton City Council","http://opendatacommunities.org/id/metropolitan-district-council/wolverhampton","Amazon UK Marketplace","16.94","Youth Offending Team","5942","Books","27/05/2016"
"Wolverhampton City Council","http://opendatacommunities.org/id/metropolitan-district-council/wolverhampton","Virgintrains.co.uk","171.00","Mayoral Expenses","4112","Public Transport","27/05/2016"
"Wolverhampton City Council","http://opendatacommunities.org/id/metropolitan-district-council/wolverhampton","Virgintrains.co.uk","118.00","LAC Team","4112","Public Transport","27/05/2016"
"Wolverhampton City Council","http://opendatacommunities.org/id/metropolitan-district-council/wolverhampton","Virgintrains.co.uk","182.00","Fostering Team & Allowances","4112","Public Transport","27/05/2016"
"Wolverhampton City Council","http://opendatacommunities.org/id/metropolitan-district-council/wolverhampton","FUEL CARD SERVICES LTD","219.11","Towers Outdoor Education Centre","7399","Petrol","27/05/2016"
"Wolverhampton City Council","http://opendatacommunities.org/id/metropolitan-district-council/wolverhampton","Virgintrains.co.uk","48.10","Democratic Support","4112","Public Transport","27/05/2016"
"Wolverhampton City Council","http://opendatacommunities.org/id/metropolitan-district-council/wolverhampton","Amazon UK Marketplace","19.99","Archives","5942","Books","27/05/2016"
"Wolverhampton City Council","http://opendatacommunities.org/id/metropolitan-district-council/wolverhampton","Virgintrains.co.uk","286.00","Fostering Team & Allowances","4112","Public Transport","27/05/2016"
"Wolverhampton City Council","http://opendatacommunities.org/id/metropolitan-district-council/wolverhampton","HOTELS COM129930895686","488.25","Adoption and Residence Team & Allowances","4722","Accommodation Costs","27/05/2016"
"Wolverhampton City Council","http://opendatacommunities.org/id/metropolitan-district-council/wolverhampton","STERMAT CAR AND VAN HI","738.55","Towers Outdoor Education Centre","5521","Hire of Vehicles","27/05/2016"
"Wolverhampton City Council","http://opendatacommunities.org/id/metropolitan-district-council/wolverhampton","THE ABBEY HOTEL","40.00","LAC Team","7011","Services - Supplies & Services to users","27/05/2016"
"Wolverhampton City Council","http://opendatacommunities.org/id/metropolitan-district-council/wolverhampton","CURRYS","169.00","Headstart","5732","Equipment - Purchase","27/05/2016"
"Wolverhampton City Council","http://opendatacommunities.org/id/metropolitan-district-council/wolverhampton","Amazon EU","31.35","Community Recreation","5969","Equipment - Purchase","27/05/2016"
"Wolverhampton City Council","http://opendatacommunities.org/id/metropolitan-district-council/wolverhampton","FACEBOOK PXKXR8EF92","20.06","Civic Halls Non Direct Management A/C","7311","Marketing \ Non-staff advertising","27/05/2016"
"Wolverhampton City Council","http://opendatacommunities.org/id/metropolitan-district-council/wolverhampton","Amazon UK Marketplace","4.97","Global Budgets","5942","Books","27/05/2016"
"Wolverhampton City Council","http://opendatacommunities.org/id/metropolitan-district-council/wolverhampton","WWW.SIGN-HOLDERS.CO.UK","115.81","Healthy Schools Team","5999","Equipment - Purchase","27/05/2016"
"Wolverhampton City Council","http://opendatacommunities.org/id/metropolitan-district-council/wolverhampton","HSBC INVOICE FINAN","361.46","Towers Outdoor Education Centre","6012","Laundry Expenses","27/05/2016"
"Wolverhampton City Council","http://opendatacommunities.org/id/metropolitan-district-council/wolverhampton","Amazon EU","13.64","MAST 1 - Deansfield","5969","Books","27/05/2016"
"Wolverhampton City Council","http://opendatacommunities.org/id/metropolitan-district-council/wolverhampton","NOVOTEL HOTELS","84.17","Mayoral Expenses","3642","Subsistence","27/05/2016"
"Wolverhampton City Council","http://opendatacommunities.org/id/metropolitan-district-council/wolverhampton","WWW.ROLLARAMP.CO.UK","223.20","Electoral Registration","7399","Equipment - Purchase","27/05/2016"
"Wolverhampton City Council","http://opendatacommunities.org/id/metropolitan-district-council/wolverhampton","Amazon UK Marketplace","2.79","Youth Offending Team","5942","Books","27/05/2016"
"Wolverhampton City Council","http://opendatacommunities.org/id/metropolitan-district-council/wolverhampton","Amazon UK Marketplace","9.95","Youth Offending Team","5942","Books","27/05/2016"
"Wolverhampton City Council","http://opendatacommunities.org/id/metropolitan-district-council/wolverhampton","Amazon UK Marketplace","4.94","Aldersley Leisure Village","5942","Stationery","27/05/2016"
"Wolverhampton City Council","http://opendatacommunities.org/id/metropolitan-district-council/wolverhampton","SAIN ST MARKS","250.00","Childrens with Disabilities Team","6011","Financial Assistance In Exceptional Circ","27/05/2016"
"Wolverhampton City Council","http://opendatacommunities.org/id/metropolitan-district-council/wolverhampton","Amazon EU","7.70","Global Budgets","5969","Books","27/05/2016"
"Wolverhampton City Council","http://opendatacommunities.org/id/metropolitan-district-council/wolverhampton","Virgintrains.co.uk","143.50","LAC Team","4112","Public Transport","27/05/2016"
"Wolverhampton City Council","http://opendatacommunities.org/id/metropolitan-district-council/wolverhampton","WWW.SIGN-HOLDERS.CO.UK","115.81","Healthy Schools Team","5999","Equipment - Purchase","27/05/2016"
"Wolverhampton City Council","http://opendatacommunities.org/id/metropolitan-district-council/wolverhampton","HOMEBASE LTD 103","103.22","Children & Family Contact Services","5211","Cleaning Supplies and Materials","27/05/2016"
"Wolverhampton City Council","http://opendatacommunities.org/id/metropolitan-district-council/wolverhampton","REDWINGS LODGE","429.65","CIN/CP S17 SW Unit - Area 8","7011","Services - Supplies & Services to users","27/05/2016"
"Wolverhampton City Council","http://opendatacommunities.org/id/metropolitan-district-council/wolverhampton","PC WORLD","16.66","Pupil Premium","5732","Equipment - Purchase","27/05/2016"
"Wolverhampton City Council","http://opendatacommunities.org/id/metropolitan-district-council/wolverhampton","Amazon EU","50.08","Technical Support","5969","Equipment - Purchase","27/05/2016"
"Wolverhampton City Council","http://opendatacommunities.org/id/metropolitan-district-council/wolverhampton","NATWEST BANK","100.00","Democratic Support","6011","Public Transport","27/05/2016"
"Wolverhampton City Council","http://opendatacommunities.org/id/metropolitan-district-council/wolverhampton","ARGOS LTD","4.99","Business Manager - Place","5310","Equipment - Purchase","26/05/2016"
"Wolverhampton City Council","http://opendatacommunities.org/id/metropolitan-district-council/wolverhampton","PREMIER INN","99.37","Headstart","3811","Services - Supplies & Services to users","26/05/2016"
"Wolverhampton City Council","http://opendatacommunities.org/id/metropolitan-district-council/wolverhampton","DICE & GAMES DISTRIBUT","9.68","Pupil Premium","5945","Equipment - Purchase","26/05/2016"
"Wolverhampton City Council","http://opendatacommunities.org/id/metropolitan-district-council/wolverhampton","Virgintrains.co.uk","119.75","LAC Team","4112","Public Transport","26/05/2016"
"Wolverhampton City Council","http://opendatacommunities.org/id/metropolitan-district-council/wolverhampton","PREMIER INN","19.83","Headstart","3811","Services - Supplies & Services to users","26/05/2016"
"Wolverhampton City Council","http://opendatacommunities.org/id/metropolitan-district-council/wolverhampton","PAYPAL  WTONBIZFOR","30.00","WV Active Business Support","8398","Marketing \ Non-staff advertising","26/05/2016"
"Wolverhampton City Council","http://opendatacommunities.org/id/metropolitan-district-council/wolverhampton","WH SMITH TRAVEL","10.90","Headstart","5994","Books","26/05/2016"
"Wolverhampton City Council","http://opendatacommunities.org/id/metropolitan-district-council/wolverhampton","Amazon UK Marketplace","21.48","Technical Support","5942","Books","26/05/2016"
"Wolverhampton City Council","http://opendatacommunities.org/id/metropolitan-district-council/wolverhampton","CRS","175.00","LAC Transitions Team","5713","Client Allowances","26/05/2016"
"Wolverhampton City Council","http://opendatacommunities.org/id/metropolitan-district-council/wolverhampton","CARRIER BAG SHOP","70.35","Bilston Museum","7399","Materials","26/05/2016"
"Wolverhampton City Council","http://opendatacommunities.org/id/metropolitan-district-council/wolverhampton","Amazon UK Marketplace","7.98","EIP Locality 7","5942","Equipment - Purchase","26/05/2016"
"Wolverhampton City Council","http://opendatacommunities.org/id/metropolitan-district-council/wolverhampton","REDWINGS LODGE","69.95","CIN/CP S17 SW Unit - Area 7","7011","Services - Supplies & Services to users","26/05/2016"
"Wolverhampton City Council","http://opendatacommunities.org/id/metropolitan-district-council/wolverhampton","POST OFFICE COUNTER","561.50","LAC Team","9402","Comms - Postage","26/05/2016"
"Wolverhampton City Council","http://opendatacommunities.org/id/metropolitan-district-council/wolverhampton","PREMIER INN","133.32","Workforce Development","3811","Accommodation Costs","26/05/2016"
"Wolverhampton City Council","http://opendatacommunities.org/id/metropolitan-district-council/wolverhampton","PREMIER INN","675.83","Headstart","3811","Services - Supplies & Services to users","26/05/2016"
"Wolverhampton City Council","http://opendatacommunities.org/id/metropolitan-district-council/wolverhampton","VUE ITCERTIFICATIONVUE","118.80","Customer Services","8299","Training Expenses","26/05/2016"
"Wolverhampton City Council","http://opendatacommunities.org/id/metropolitan-district-council/wolverhampton","Amazon UK Marketplace","23.40","Art Gallery","5942","Equipment - R & M","26/05/2016"
"Wolverhampton City Council","http://opendatacommunities.org/id/metropolitan-district-council/wolverhampton","REGISTRARS OFFICE","180.00","Adoption and Residence Team & Allowances","8299","Services - Fees and Charges","26/05/2016"
"Wolverhampton City Council","http://opendatacommunities.org/id/metropolitan-district-council/wolverhampton","PREMIER INN","671.67","Headstart","3811","Services - Supplies & Services to users","26/05/2016"
"Wolverhampton City Council","http://opendatacommunities.org/id/metropolitan-district-council/wolverhampton","PP CSH","125.00","WV Active Business Support","1520","Equipment - Hire","26/05/2016"
"Wolverhampton City Council","http://opendatacommunities.org/id/metropolitan-district-council/wolverhampton","Amazon UK Marketplace","12.50","Bert Williams Leisure Centre","5942","Cleaning Supplies and Materials","26/05/2016"
"Wolverhampton City Council","http://opendatacommunities.org/id/metropolitan-district-council/wolverhampton","PREMIER INN","145.82","Workforce Development","3811","Accommodation Costs","26/05/2016"
"Wolverhampton City Council","http://opendatacommunities.org/id/metropolitan-district-council/wolverhampton","Amazon UK Marketplace","21.98","Technical Support","5942","Equipment - Purchase","26/05/2016"
"Wolverhampton City Council","http://opendatacommunities.org/id/metropolitan-district-council/wolverhampton","ASDA SUPERSTORE","70.97","LAC Transitions Team","5411","Client Allowances","26/05/2016"
"Wolverhampton City Council","http://opendatacommunities.org/id/metropolitan-district-council/wolverhampton","PREMIER INN","671.67","Headstart","3811","Services - Supplies & Services to users","26/05/2016"
"Wolverhampton City Council","http://opendatacommunities.org/id/metropolitan-district-council/wolverhampton","CARVER/WOLVERHAMPTON/L","108.19","Ground Maintenance East","5211","Materials","26/05/2016"
"Wolverhampton City Council","http://opendatacommunities.org/id/metropolitan-district-council/wolverhampton","TOOLSTATION LTD","20.10","Telecare","5251","Equipment - Purchase","26/05/2016"
"Wolverhampton City Council","http://opendatacommunities.org/id/metropolitan-district-council/wolverhampton","Amazon EU","15.95","Technical Support","5969","Equipment - Purchase","26/05/2016"
"Wolverhampton City Council","http://opendatacommunities.org/id/metropolitan-district-council/wolverhampton","APPROVED CS LTD","230.00","WV Active Business Support","5085","Equipment - Purchase","26/05/2016"
"Wolverhampton City Council","http://opendatacommunities.org/id/metropolitan-district-council/wolverhampton","TOOLSTATION LTD","20.10","Telecare","5251","Equipment - Purchase","26/05/2016"
"Wolverhampton City Council","http://opendatacommunities.org/id/metropolitan-district-council/wolverhampton","PAYPAL  EVENTSINDUS","25.00","Environmental Health - Pub Prot - Gen","8999","Equipment - Purchase","26/05/2016"
"Wolverhampton City Council","http://opendatacommunities.org/id/metropolitan-district-council/wolverhampton","CUMMINGS BROTHERS LOCK","46.87","Caretakers Community Centre","7399","R&M - Departmental planned (external)","25/05/2016"
"Wolverhampton City Council","http://opendatacommunities.org/id/metropolitan-district-council/wolverhampton","MAILCHIMP","34.97","City Direct","7399","Equipment - Purchase","25/05/2016"
"Wolverhampton City Council","http://opendatacommunities.org/id/metropolitan-district-council/wolverhampton","CARVER/WOLVERHAMPTON/L","37.23","Wholesale Market Facilities Management","5211","R&M - Departmental planned (external)","25/05/2016"
"Wolverhampton City Council","http://opendatacommunities.org/id/metropolitan-district-council/wolverhampton","REGISTRARS OFFICE","21.00","CIN/CP S17 SW Unit - Area 3B","8299","Printing","25/05/2016"
"Wolverhampton City Council","http://opendatacommunities.org/id/metropolitan-district-council/wolverhampton","TFL CC/LEZ CHARGE","9.58","Mayoral Expenses","4784","Parking Fees","25/05/2016"
"Wolverhampton City Council","http://opendatacommunities.org/id/metropolitan-district-council/wolverhampton","POST OFFICE COUNTER","224.00","Fostering Team & Allowances","9402","Comms - Postage","25/05/2016"
"Wolverhampton City Council","http://opendatacommunities.org/id/metropolitan-district-council/wolverhampton","POST OFFICE COUNTER","128.00","Safeguarding Admin Resource","9402","Comms - Postage","25/05/2016"
"Wolverhampton City Council","http://opendatacommunities.org/id/metropolitan-district-council/wolverhampton","REDWINGS LODGE","220.67","CIN/CP S17 SW Unit - Area 2","7011","TPP - B&B payments to landlords","25/05/2016"
"Wolverhampton City Council","http://opendatacommunities.org/id/metropolitan-district-council/wolverhampton","TRAINLINE","37.69","Delivery & OCE Development","4112","Public Transport","25/05/2016"
"Wolverhampton City Council","http://opendatacommunities.org/id/metropolitan-district-council/wolverhampton","G & M HALE LTD","80.50","Creative Studies Delivery Area","5992","Materials for resale","25/05/2016"
"Wolverhampton City Council","http://opendatacommunities.org/id/metropolitan-district-council/wolverhampton","SUPERDRUG STORES PLC","11.94","CIN/CP S17 SW Unit - Area 5","5912","Toilet Requisites","25/05/2016"
"Wolverhampton City Council","http://opendatacommunities.org/id/metropolitan-district-council/wolverhampton","REDWINGS LODGE","54.95","CIN/CP S17 SW Unit - Area 7","7011","Services - Supplies & Services to users","25/05/2016"
"Wolverhampton City Council","http://opendatacommunities.org/id/metropolitan-district-council/wolverhampton","WEST COAST TRAINS","6.90","CIN/CP S17 SW Unit - Area 3B","4112","Public Transport","25/05/2016"
"Wolverhampton City Council","http://opendatacommunities.org/id/metropolitan-district-council/wolverhampton","BUSHBURY NEWS AND OFF","14.65","Headstart","5411","Provisions (Not for resale)","25/05/2016"
"Wolverhampton City Council","http://opendatacommunities.org/id/metropolitan-district-council/wolverhampton","TRAINLINE","187.27","Black Country Transport Director","4112","Public Transport","25/05/2016"
"Wolverhampton City Council","http://opendatacommunities.org/id/metropolitan-district-council/wolverhampton","Amazon UK Marketplace","3.02","EIP Locality 7","5942","Equipment - Purchase","25/05/2016"
"Wolverhampton City Council","http://opendatacommunities.org/id/metropolitan-district-council/wolverhampton","TRAINLINE","37.69","Delivery & OCE Development","4112","Public Transport","25/05/2016"
"Wolverhampton City Council","http://opendatacommunities.org/id/metropolitan-district-council/wolverhampton","TVLICENSING.CO.UK","145.50","Upper Pendeford Farm Childrens Home","7392","Services - Consultants","25/05/2016"
"Wolverhampton City Council","http://opendatacommunities.org/id/metropolitan-district-council/wolverhampton","Virgintrains.co.uk","18.80","Strategic Financial Services","4112","Public Transport","25/05/2016"
"Wolverhampton City Council","http://opendatacommunities.org/id/metropolitan-district-council/wolverhampton","G & M HALE LTD","126.85","Discretionary Fund","5992","Materials","25/05/2016"
"Wolverhampton City Council","http://opendatacommunities.org/id/metropolitan-district-council/wolverhampton","CUMMINGS BROTHERS LOCK","13.33","Wholesale Market Facilities Management","7399","R&M - Departmental planned (external)","25/05/2016"
"Wolverhampton City Council","http://opendatacommunities.org/id/metropolitan-district-council/wolverhampton","NATWEST BANK","250.00","CIN/CP S17 SW Unit - Area 5","6011","Financial Assistance In Exceptional Circ","25/05/2016"
"Wolverhampton City Council","http://opendatacommunities.org/id/metropolitan-district-council/wolverhampton","WAITROSE 696","13.00","CIN/CP Social Work Unit - Area 3A","5411","Provisions (Not for resale)","25/05/2016"
"Wolverhampton City Council","http://opendatacommunities.org/id/metropolitan-district-council/wolverhampton","ARGOS LTD","29.93","CIN/CP S17 SW Unit - Area 3A","5310","Equipment - Purchase","25/05/2016"
"Wolverhampton City Council","http://opendatacommunities.org/id/metropolitan-district-council/wolverhampton","EAST & WEST AID","275.00","CIN/CP S17 SW Unit - Area 3A","8398","Furniture","25/05/2016"
"Wolverhampton City Council","http://opendatacommunities.org/id/metropolitan-district-council/wolverhampton","CUMMINGS BROTHERS LOCK","7.50","Caretakers Community Centre","7399","R&M - Departmental planned (external)","25/05/2016"
"Wolverhampton City Council","http://opendatacommunities.org/id/metropolitan-district-council/wolverhampton","ALPHA BIOLABORATORIES","86.67","Head of Service - CINCP","8099","Services - Professional Fees","25/05/2016"
"Wolverhampton City Council","http://opendatacommunities.org/id/metropolitan-district-council/wolverhampton","TRAINLINE","269.18","Delivery & OCE Development","4112","Public Transport","25/05/2016"
"Wolverhampton City Council","http://opendatacommunities.org/id/metropolitan-district-council/wolverhampton","Amazon UK Marketplace","26.96","Connexions Contract","5942","Stationery","25/05/2016"
"Wolverhampton City Council","http://opendatacommunities.org/id/metropolitan-district-council/wolverhampton","TESCO STORES 5194","176.52","Towers Outdoor Education Centre","5411","Provisions (Not for resale)","25/05/2016"
"Wolverhampton City Council","http://opendatacommunities.org/id/metropolitan-district-council/wolverhampton","DULUX DEC CENTRE","118.53","Maintenance of Exhibits","5719","Equipment - Purchase","25/05/2016"
"Wolverhampton City Council","http://opendatacommunities.org/id/metropolitan-district-council/wolverhampton","WM MORRISON 024","49.86","Ernest Bold Court","5411","Provisions (Not for resale)","25/05/2016"
"Wolverhampton City Council","http://opendatacommunities.org/id/metropolitan-district-council/wolverhampton","G & M HALE (SUNDRIES)","6.50","Creative Studies Delivery Area","5992","Materials for resale","25/05/2016"
"Wolverhampton City Council","http://opendatacommunities.org/id/metropolitan-district-council/wolverhampton","123 REG R/T","57.55","Customer Services","5968","Subscriptions","25/05/2016"
"Wolverhampton City Council","http://opendatacommunities.org/id/metropolitan-district-council/wolverhampton","POST OFFICE COUNTER","8.51","CIN/CP Social Work Unit - Area 4","9402","Comms - Postage","25/05/2016"
"Wolverhampton City Council","http://opendatacommunities.org/id/metropolitan-district-council/wolverhampton","NOTEMACHINE","250.00","CIN/CP S17 SW Unit - Area 6","6011","Financial Assistance In Exceptional Circ","25/05/2016"
"Wolverhampton City Council","http://opendatacommunities.org/id/metropolitan-district-council/wolverhampton","TRAINLINE","256.84","Delivery & OCE Development","4112","Public Transport","25/05/2016"
"Wolverhampton City Council","http://opendatacommunities.org/id/metropolitan-district-council/wolverhampton","TRAINLINE","197.37","Delivery & OCE Development","4112","Public Transport","25/05/2016"
"Wolverhampton City Council","http://opendatacommunities.org/id/metropolitan-district-council/wolverhampton","Virgintrains.co.uk","8.00","Members Expenses","4112","Public Transport","25/05/2016"
"Wolverhampton City Council","http://opendatacommunities.org/id/metropolitan-district-council/wolverhampton","Amazon UK Marketplace","33.32","Community Recreation","5942","Equipment - Purchase","24/05/2016"
"Wolverhampton City Council","http://opendatacommunities.org/id/metropolitan-district-council/wolverhampton","WILKO RETAIL LIMIT","8.90","Service Wide","5722","Equipment - Purchase","24/05/2016"
"Wolverhampton City Council","http://opendatacommunities.org/id/metropolitan-district-council/wolverhampton","CALUMET MANCHESTER","70.00","Museum Resilience Project - ACE","5946","Equipment - Purchase","24/05/2016"
"Wolverhampton City Council","http://opendatacommunities.org/id/metropolitan-district-council/wolverhampton","POST OFFICE COUNTER","2.79","Cemeteries","9402","Comms - Postage","24/05/2016"
"Wolverhampton City Council","http://opendatacommunities.org/id/metropolitan-district-council/wolverhampton","INPRINT LITHO LTD","223.00","Technical Support","2741","Publications","24/05/2016"
"Wolverhampton City Council","http://opendatacommunities.org/id/metropolitan-district-council/wolverhampton","Amazon UK Marketplace","199.95","Learning Technologies","5942","Books","24/05/2016"
"Wolverhampton City Council","http://opendatacommunities.org/id/metropolitan-district-council/wolverhampton","OXLEY STATIONERS &","41.12","Headstart","5943","Stationery","24/05/2016"
"Wolverhampton City Council","http://opendatacommunities.org/id/metropolitan-district-council/wolverhampton","MONKEYOFFICE.CO.UK","13.56","Private Sector Housing","5943","Stationery","24/05/2016"
"Wolverhampton City Council","http://opendatacommunities.org/id/metropolitan-district-council/wolverhampton","UNTOUCHABLES","7.50","Wholesale Market Facilities Management","5231","Cleaning Supplies and Materials","24/05/2016"
"Wolverhampton City Council","http://opendatacommunities.org/id/metropolitan-district-council/wolverhampton","Amazon UK Marketplace","52.99","Community Recreation","5942","Equipment - Purchase","24/05/2016"
"Wolverhampton City Council","http://opendatacommunities.org/id/metropolitan-district-council/wolverhampton","HUGHES","150.00","LAC Transitions Team","5732","Client Allowances","24/05/2016"
"Wolverhampton City Council","http://opendatacommunities.org/id/metropolitan-district-council/wolverhampton","COMPLETE FOOD SAFETY","156.94","Environmental Health - Pub Prot - Gen","5047","Equipment - Purchase","24/05/2016"
"Wolverhampton City Council","http://opendatacommunities.org/id/metropolitan-district-council/wolverhampton","OXLEY STATIONERS &","123.37","Headstart","5943","Stationery","24/05/2016"
"Wolverhampton City Council","http://opendatacommunities.org/id/metropolitan-district-council/wolverhampton","HUGHES","416.67","LAC Transitions Team","5732","Client Allowances","24/05/2016"
"Wolverhampton City Council","http://opendatacommunities.org/id/metropolitan-district-council/wolverhampton","Amazon UK Marketplace","415.93","Central Baths","5942","Equipment - Purchase","24/05/2016"
"Wolverhampton City Council","http://opendatacommunities.org/id/metropolitan-district-council/wolverhampton","SIGMA IMAGING (UK)","440.00","Museum Resilience Project - ACE","5946","Equipment - Purchase","24/05/2016"
"Wolverhampton City Council","http://opendatacommunities.org/id/metropolitan-district-council/wolverhampton","POST OFFICE COUNTER","64.00","Vulnerable Young Persons Team","9402","Comms - Postage","24/05/2016"
"Wolverhampton City Council","http://opendatacommunities.org/id/metropolitan-district-council/wolverhampton","MYMEMORYLTD","17.98","Museum Resilience Project - ACE","5732","Equipment - Purchase","24/05/2016"
"Wolverhampton City Council","http://opendatacommunities.org/id/metropolitan-district-council/wolverhampton","Virgintrains.co.uk","52.50","Headstart","4112","Public Transport","24/05/2016"
"Wolverhampton City Council","http://opendatacommunities.org/id/metropolitan-district-council/wolverhampton","STK SHUTTERSTOCK, INC.","10617.05","Combined Authority","7333","Services - Professional Fees","24/05/2016"
"Wolverhampton City Council","http://opendatacommunities.org/id/metropolitan-district-council/wolverhampton","SAINSBURYS (2340)","142.70","Discretionary Fund","5411","Provisions (Not for resale)","24/05/2016"
"Wolverhampton City Council","http://opendatacommunities.org/id/metropolitan-district-council/wolverhampton","YOUNGS SHOE REPAIRS LI","11.80","Wolverhampton Indoor and Open Market","7251","Fixtures and Fittings - R&M","24/05/2016"
"Wolverhampton City Council","http://opendatacommunities.org/id/metropolitan-district-council/wolverhampton","OXLEY STATIONERS &","74.78","Headstart","5943","Stationery","24/05/2016"
"Wolverhampton City Council","http://opendatacommunities.org/id/metropolitan-district-council/wolverhampton","TVLICENSING.CO.UK","145.50","LAC Admin Team","7392","Client Allowances","24/05/2016"
"Wolverhampton City Council","http://opendatacommunities.org/id/metropolitan-district-council/wolverhampton","TRAINLINE","35.34","Adoption and Residence Team & Allowances","4112","Public Transport","24/05/2016"
"Wolverhampton City Council","http://opendatacommunities.org/id/metropolitan-district-council/wolverhampton","REDWINGS LODGE","58.29","Emergency Duty Team","7011","Services - Supplies & Services to users","24/05/2016"
"Wolverhampton City Council","http://opendatacommunities.org/id/metropolitan-district-council/wolverhampton","TVLICENSING.CO.UK","145.50","Court of Protection, Funerals Prot Prop","7392","Services - Supplies & Services to users","24/05/2016"
"Wolverhampton City Council","http://opendatacommunities.org/id/metropolitan-district-council/wolverhampton","Virgintrains.co.uk","116.55","Members Expenses","4112","Public Transport","24/05/2016"
"Wolverhampton City Council","http://opendatacommunities.org/id/metropolitan-district-council/wolverhampton","THE QUEEN VICTORIA HOT","187.20","CIN/CP S17 SW Unit - Area 6","7011","Accommodation Costs","24/05/2016"
"Wolverhampton City Council","http://opendatacommunities.org/id/metropolitan-district-council/wolverhampton","123 REG R/T","28.78","Customer Services","5968","Subscriptions","24/05/2016"
"Wolverhampton City Council","http://opendatacommunities.org/id/metropolitan-district-council/wolverhampton","Amazon UK Marketplace","50.81","Inclusion Support","5942","Books","24/05/2016"
"Wolverhampton City Council","http://opendatacommunities.org/id/metropolitan-district-council/wolverhampton","SAIN ST MARKS","250.00","Childrens with Disabilities Team","6011","Financial Assistance In Exceptional Circ","23/05/2016"
"Wolverhampton City Council","http://opendatacommunities.org/id/metropolitan-district-council/wolverhampton","CO-OPERATIVE TRAVE","430.33","Leonardo Da Vinci Project","6051","Subsistence","23/05/2016"
"Wolverhampton City Council","http://opendatacommunities.org/id/metropolitan-district-council/wolverhampton","ASDA HOME SHOPPING","-0.25","Ernest Bold Court","5411","Provisions (Not for resale)","23/05/2016"
"Wolverhampton City Council","http://opendatacommunities.org/id/metropolitan-district-council/wolverhampton","WWW.ADDISONLEE.COM","9.58","Headstart","4121","Client Transport","23/05/2016"
"Wolverhampton City Council","http://opendatacommunities.org/id/metropolitan-district-council/wolverhampton","Amazon UK Marketplace","57.78","Leonardo Da Vinci Project","5942","Books","23/05/2016"
"Wolverhampton City Council","http://opendatacommunities.org/id/metropolitan-district-council/wolverhampton","ASDA HOME SHOPPING","95.20","Ernest Bold Court","5411","Provisions (Not for resale)","23/05/2016"
"Wolverhampton City Council","http://opendatacommunities.org/id/metropolitan-district-council/wolverhampton","BRITISH HEART FOUNDATI","15.00","LAC Transitions Team","8398","Client Allowances","23/05/2016"
"Wolverhampton City Council","http://opendatacommunities.org/id/metropolitan-district-council/wolverhampton","Amazon UK Marketplace","10.63","Leonardo Da Vinci Project","5942","Books","23/05/2016"
"Wolverhampton City Council","http://opendatacommunities.org/id/metropolitan-district-council/wolverhampton","CO-OPERATIVE TRAVE","1000.00","Leonardo Da Vinci Project","6051","Subsistence","23/05/2016"
"Wolverhampton City Council","http://opendatacommunities.org/id/metropolitan-district-council/wolverhampton","PREMIER INN","4.08","Headstart","3811","Services - Supplies & Services to users","23/05/2016"
"Wolverhampton City Council","http://opendatacommunities.org/id/metropolitan-district-council/wolverhampton","Amazon UK Marketplace","9.90","Leonardo Da Vinci Project","5942","Equipment - Purchase","23/05/2016"
"Wolverhampton City Council","http://opendatacommunities.org/id/metropolitan-district-council/wolverhampton","ASDA SUPERSTORE","212.71","LAC Transitions Team","5411","Client Allowances","23/05/2016"
"Wolverhampton City Council","http://opendatacommunities.org/id/metropolitan-district-council/wolverhampton","CMPCARESHOP","32.63","Specialist Support Service - North","5331","Equipment - Purchase","23/05/2016"
"Wolverhampton City Council","http://opendatacommunities.org/id/metropolitan-district-council/wolverhampton","CO-OPERATIVE TRAVE","1000.00","Leonardo Da Vinci Project","6051","Subsistence","23/05/2016"
"Wolverhampton City Council","http://opendatacommunities.org/id/metropolitan-district-council/wolverhampton","WWW.CFOASERVICES.CO.UK","150.00","Delivery & OCE Development","8699","Conference Expenses","23/05/2016"
"Wolverhampton City Council","http://opendatacommunities.org/id/metropolitan-district-council/wolverhampton","PRIMARK","21.67","LAC Transitions Team","5651","Client Allowances","23/05/2016"
"Wolverhampton City Council","http://opendatacommunities.org/id/metropolitan-district-council/wolverhampton","Virgintrains.co.uk","372.80","Welfare Rights","4112","Public Transport","23/05/2016"
"Wolverhampton City Council","http://opendatacommunities.org/id/metropolitan-district-council/wolverhampton","WIFI PREMIER INN","4.17","Headstart","5734","Computing - Purchase of Software","23/05/2016"
"Wolverhampton City Council","http://opendatacommunities.org/id/metropolitan-district-council/wolverhampton","ARGOS LTD","152.47","LAC Transitions Team","5310","Client Allowances","23/05/2016"
"Wolverhampton City Council","http://opendatacommunities.org/id/metropolitan-district-council/wolverhampton","PREMIER INN","4.58","Headstart","3811","Services - Supplies & Services to users","23/05/2016"
"Wolverhampton City Council","http://opendatacommunities.org/id/metropolitan-district-council/wolverhampton","TEX MEADOWVALEGAR","106.64","Towers Outdoor Education Centre","5541","Petrol","23/05/2016"
"Wolverhampton City Council","http://opendatacommunities.org/id/metropolitan-district-council/wolverhampton","PREMIER INN","146.66","Headstart","3811","Services - Supplies & Services to users","23/05/2016"
"Wolverhampton City Council","http://opendatacommunities.org/id/metropolitan-district-council/wolverhampton","MORRISONS PETROL","16.67","Swan Bank","5542","Petrol","23/05/2016"
"Wolverhampton City Council","http://opendatacommunities.org/id/metropolitan-district-council/wolverhampton","REDWINGS LODGE","212.33","CIN/CP S17 SW Unit - Area 2","7011","TPP - B&B payments to landlords","23/05/2016"
"Wolverhampton City Council","http://opendatacommunities.org/id/metropolitan-district-council/wolverhampton","WOLVERHAMPTON RACECOUR","206.10","Delivery & OCE Development","7011","Hospitality","23/05/2016"
"Wolverhampton City Council","http://opendatacommunities.org/id/metropolitan-district-council/wolverhampton","WIX.COM","46.57","Technical Support","5968","Subscriptions","23/05/2016"
"Wolverhampton City Council","http://opendatacommunities.org/id/metropolitan-district-council/wolverhampton","Amazon UK Marketplace","8.45","Leonardo Da Vinci Project","5942","Equipment - Purchase","23/05/2016"
"Wolverhampton City Council","http://opendatacommunities.org/id/metropolitan-district-council/wolverhampton","KONICA MINOLTA BUSINES","168.21","Music Support Team","7399","Equipment - R & M","23/05/2016"
"Wolverhampton City Council","http://opendatacommunities.org/id/metropolitan-district-council/wolverhampton","ASDA SUPERSTORE","145.08","Upper Pendeford Farm Childrens Home","5411","Provisions (Not for resale)","23/05/2016"
"Wolverhampton City Council","http://opendatacommunities.org/id/metropolitan-district-council/wolverhampton","KONICA MINOLTA BUSINES","247.20","Music Support Team","7399","Equipment - R & M","23/05/2016"
"Wolverhampton City Council","http://opendatacommunities.org/id/metropolitan-district-council/wolverhampton","POST OFFICE COUNTER","966.00","Adoption Team","9402","Comms - Postage","23/05/2016"
"Wolverhampton City Council","http://opendatacommunities.org/id/metropolitan-district-council/wolverhampton","ASDA HOME SHOPPING","4.17","Upper Pendeford Farm Childrens Home","5411","Provisions (Not for resale)","23/05/2016"
"Wolverhampton City Council","http://opendatacommunities.org/id/metropolitan-district-council/wolverhampton","CO-OPERATIVE TRAVE","1000.00","Leonardo Da Vinci Project","6051","Subsistence","23/05/2016"
"Wolverhampton City Council","http://opendatacommunities.org/id/metropolitan-district-council/wolverhampton","PREMIER INN","80.98","Adoption Team","3811","Services - Supplies & Services to users","23/05/2016"
"Wolverhampton City Council","http://opendatacommunities.org/id/metropolitan-district-council/wolverhampton","WWW.HOBARTUK.CO.UK","161.00","Towers Outdoor Education Centre","5722","Fixtures and Fittings - Purchases","23/05/2016"
"Wolverhampton City Council","http://opendatacommunities.org/id/metropolitan-district-council/wolverhampton","Amazon UK Marketplace","50.77","Inclusion Support","5942","Books","23/05/2016"
"Wolverhampton City Council","http://opendatacommunities.org/id/metropolitan-district-council/wolverhampton","PC WORLD","54.17","Headstart","5732","Equipment - Purchase","23/05/2016"
"Wolverhampton City Council","http://opendatacommunities.org/id/metropolitan-district-council/wolverhampton","Amazon UK Marketplace","17.40","Leonardo Da Vinci Project","5942","Books","23/05/2016"
"Wolverhampton City Council","http://opendatacommunities.org/id/metropolitan-district-council/wolverhampton","LIDL UK","6.12","Children & Family Contact Services","5411","Cleaning Supplies and Materials","20/05/2016"
"Wolverhampton City Council","http://opendatacommunities.org/id/metropolitan-district-council/wolverhampton","CO-OPERATIVE TRAVE","1000.00","Leonardo Da Vinci Project","6051","Subsistence","20/05/2016"
"Wolverhampton City Council","http://opendatacommunities.org/id/metropolitan-district-council/wolverhampton","WWW.CITIZENCARD.COM","25.00","LAC Admin Team","9399","Client Allowances","20/05/2016"
"Wolverhampton City Council","http://opendatacommunities.org/id/metropolitan-district-council/wolverhampton","Amazon EU","24.02","Technical Support","5969","Equipment - Purchase","20/05/2016"
"Wolverhampton City Council","http://opendatacommunities.org/id/metropolitan-district-council/wolverhampton","THE POST OFFICE","3.35","Northicote Farm","9402","Comms - Postage","20/05/2016"
"Wolverhampton City Council","http://opendatacommunities.org/id/metropolitan-district-council/wolverhampton","WEST COAST TRAINS","15.00","Condition Surveys","4112","Public Transport","20/05/2016"
"Wolverhampton City Council","http://opendatacommunities.org/id/metropolitan-district-council/wolverhampton","Amazon UK Marketplace","12.98","Customer Services","5942","Books","20/05/2016"
"Wolverhampton City Council","http://opendatacommunities.org/id/metropolitan-district-council/wolverhampton","Amazon UK Marketplace","15.28","Leonardo Da Vinci Project","5942","Equipment - Purchase","20/05/2016"
"Wolverhampton City Council","http://opendatacommunities.org/id/metropolitan-district-council/wolverhampton","ROYAL MAIL  0845606040","98.00","Business Manager - Place","9402","Comms - Postage","20/05/2016"
"Wolverhampton City Council","http://opendatacommunities.org/id/metropolitan-district-council/wolverhampton","FACEBOOK 6KD4N82B92","595.64","Communications & Marketing - General","7311","Marketing \ Non-staff advertising","20/05/2016"
"Wolverhampton City Council","http://opendatacommunities.org/id/metropolitan-district-council/wolverhampton","CARVER/WOLVERHAMPTON/L","39.97","Wholesale Market Facilities Management","5211","Cleaning Supplies and Materials","20/05/2016"
"Wolverhampton City Council","http://opendatacommunities.org/id/metropolitan-district-council/wolverhampton","WWW.UCAS.COM","163.00","24+ Advanced Learning Loan","8220","Services - Fees and Charges","20/05/2016"
"Wolverhampton City Council","http://opendatacommunities.org/id/metropolitan-district-council/wolverhampton","CUMMINGS BROTHERS LOCK","5.00","MAST 3 - Graiseley","7399","Equipment - Purchase","20/05/2016"
"Wolverhampton City Council","http://opendatacommunities.org/id/metropolitan-district-council/wolverhampton","CO-OPERATIVE TRAVE","1000.00","Leonardo Da Vinci Project","6051","Subsistence","20/05/2016"
"Wolverhampton City Council","http://opendatacommunities.org/id/metropolitan-district-council/wolverhampton","ROYAL MAIL  0845606040","14.00","Business Manager - Place","9402","Comms - Postage","20/05/2016"
"Wolverhampton City Council","http://opendatacommunities.org/id/metropolitan-district-council/wolverhampton","SAINSBURYS 2019","4.71","Headstart","5411","Provisions (Not for resale)","20/05/2016"
"Wolverhampton City Council","http://opendatacommunities.org/id/metropolitan-district-council/wolverhampton","ROYAL MAIL  0845606040","60.00","Business Manager - Place","9402","Comms - Postage","20/05/2016"
"Wolverhampton City Council","http://opendatacommunities.org/id/metropolitan-district-council/wolverhampton","WWW.KBT.CO.UK","111.74","Leonardo Da Vinci Project","5714","Equipment - Purchase","20/05/2016"
"Wolverhampton City Council","http://opendatacommunities.org/id/metropolitan-district-council/wolverhampton","ROYAL MAIL  0845606040","20.00","Business Manager - Place","9402","Comms - Postage","20/05/2016"
"Wolverhampton City Council","http://opendatacommunities.org/id/metropolitan-district-council/wolverhampton","B & Q 1243","11.02","Ernest Bold Court","5211","Equipment - R & M","20/05/2016"
"Wolverhampton City Council","http://opendatacommunities.org/id/metropolitan-district-council/wolverhampton","ROYAL MAIL  0845606040","8.00","Business Manager - Place","9402","Comms - Postage","20/05/2016"
"Wolverhampton City Council","http://opendatacommunities.org/id/metropolitan-district-council/wolverhampton","UK AUTOMOTIVE PRODTS L","283.20","Civic Halls Non Direct Management A/C","5533","Vehicle Maintenance - Repairs","20/05/2016"
"Wolverhampton City Council","http://opendatacommunities.org/id/metropolitan-district-council/wolverhampton","ARGOS RETAIL GROUP","13.32","LAC Transitions Team","5310","Client Allowances","20/05/2016"
"Wolverhampton City Council","http://opendatacommunities.org/id/metropolitan-district-council/wolverhampton","SCREWFIX DIRECT","53.75","Street Lighting Maintenance","5211","Materials","20/05/2016"
"Wolverhampton City Council","http://opendatacommunities.org/id/metropolitan-district-council/wolverhampton","Amazon UK Marketplace","16.25","Leonardo Da Vinci Project","5942","Equipment - Purchase","20/05/2016"
"Wolverhampton City Council","http://opendatacommunities.org/id/metropolitan-district-council/wolverhampton","ROYAL MAIL  0845606040","8.00","Service Director City Assets","9402","Comms - Postage","20/05/2016"
"Wolverhampton City Council","http://opendatacommunities.org/id/metropolitan-district-council/wolverhampton","CO-OPERATIVE TRAVE","1000.00","Leonardo Da Vinci Project","6051","Subsistence","20/05/2016"
"Wolverhampton City Council","http://opendatacommunities.org/id/metropolitan-district-council/wolverhampton","PREMIER INN","-8.99","Fostering Team & Allowances","3811","Services - Supplies & Services to users","20/05/2016"
"Wolverhampton City Council","http://opendatacommunities.org/id/metropolitan-district-council/wolverhampton","WWW.REDSPOTTEDHANK","33.00","CIN/CP S17 SW Unit - Area 5","4112","Public Transport","20/05/2016"
"Wolverhampton City Council","http://opendatacommunities.org/id/metropolitan-district-council/wolverhampton","TRAINLINE","67.32","Customer Services","4112","Public Transport","20/05/2016"
"Wolverhampton City Council","http://opendatacommunities.org/id/metropolitan-district-council/wolverhampton","POST OFFICE COUNTER","3.48","Vulnerable Young Persons Team","9402","Comms - Postage","20/05/2016"
"Wolverhampton City Council","http://opendatacommunities.org/id/metropolitan-district-council/wolverhampton","ARGOS RETAIL GROUP","44.12","LAC Transitions Team","5310","Client Allowances","20/05/2016"
"Wolverhampton City Council","http://opendatacommunities.org/id/metropolitan-district-council/wolverhampton","TESCO DELIVERY SAVER2","2.50","Towers Outdoor Education Centre","5968","Provisions (Not for resale)","20/05/2016"
"Wolverhampton City Council","http://opendatacommunities.org/id/metropolitan-district-council/wolverhampton","FACEBOOK 7KD4N82B92","4.37","Communications & Marketing - General","7311","Marketing \ Non-staff advertising","20/05/2016"
"Wolverhampton City Council","http://opendatacommunities.org/id/metropolitan-district-council/wolverhampton","ARGOS RETAIL GROUP","377.45","LAC Transitions Team","5310","Client Allowances","20/05/2016"
"Wolverhampton City Council","http://opendatacommunities.org/id/metropolitan-district-council/wolverhampton","ROYAL MAIL  0845606040","98.00","Business Manager - Place","9402","Comms - Postage","20/05/2016"
"Wolverhampton City Council","http://opendatacommunities.org/id/metropolitan-district-council/wolverhampton","UK AUTOMOTIVE PRODTS L","360.20","Art Gallery Tea Room","5533","Equipment - Purchase","20/05/2016"
"Wolverhampton City Council","http://opendatacommunities.org/id/metropolitan-district-council/wolverhampton","CO-OPERATIVE TRAVE","500.00","Leonardo Da Vinci Project","6051","Subsistence","20/05/2016"
"Wolverhampton City Council","http://opendatacommunities.org/id/metropolitan-district-council/wolverhampton","UNI OF WOLVERHAMPT","216.00","Discretionary Fund","8220","Services - Professional Fees","20/05/2016"
"Wolverhampton City Council","http://opendatacommunities.org/id/metropolitan-district-council/wolverhampton","Amazon UK Marketplace","13.80","Leonardo Da Vinci Project","5942","Books","20/05/2016"
"Wolverhampton City Council","http://opendatacommunities.org/id/metropolitan-district-council/wolverhampton","POLYMAX LTD","120.27","Central Baths","5085","Equipment - Purchase","19/05/2016"
"Wolverhampton City Council","http://opendatacommunities.org/id/metropolitan-district-council/wolverhampton","Amazon EU","14.59","Fostering Team & Allowances","5969","Equipment - Purchase","19/05/2016"
"Wolverhampton City Council","http://opendatacommunities.org/id/metropolitan-district-council/wolverhampton","ASDA SUPERSTORE","69.87","Headstart","5411","Provisions (Not for resale)","19/05/2016"
"Wolverhampton City Council","http://opendatacommunities.org/id/metropolitan-district-council/wolverhampton","PREMIER INN","183.32","Childrens with Disabilities Team","3811","Services - Supplies & Services to users","19/05/2016"
"Wolverhampton City Council","http://opendatacommunities.org/id/metropolitan-district-council/wolverhampton","PENPARC PET SUPPLI","36.32","Northicote Farm","5995","Equipment - Purchase","19/05/2016"
"Wolverhampton City Council","http://opendatacommunities.org/id/metropolitan-district-council/wolverhampton","WEST COAST TRAINS","182.00","Safeguarding Admin Resource","4112","Public Transport","19/05/2016"
"Wolverhampton City Council","http://opendatacommunities.org/id/metropolitan-district-council/wolverhampton","E01350800000000","20.00","Ernest Bold Court","6011","Services - Supplies & Services to users","19/05/2016"
"Wolverhampton City Council","http://opendatacommunities.org/id/metropolitan-district-council/wolverhampton","Amazon EU","81.11","24+ Advanced Learning Loan","5969","Books","19/05/2016"
"Wolverhampton City Council","http://opendatacommunities.org/id/metropolitan-district-council/wolverhampton","POLYMAX LTD","833.33","Central Baths","5085","Equipment - Purchase","19/05/2016"
"Wolverhampton City Council","http://opendatacommunities.org/id/metropolitan-district-council/wolverhampton","BAUER MEDIA","67.32","Civic Halls Non Direct Management A/C","2741","Publications","19/05/2016"
"Wolverhampton City Council","http://opendatacommunities.org/id/metropolitan-district-council/wolverhampton","JONES SKIP HIRE (WOLVE","176.12","EIP Locality 3","7399","Equipment - Hire","19/05/2016"
"Wolverhampton City Council","http://opendatacommunities.org/id/metropolitan-district-council/wolverhampton","PREMIER INN","78.50","LAC Team","3811","Services - Supplies & Services to users","19/05/2016"
"Wolverhampton City Council","http://opendatacommunities.org/id/metropolitan-district-council/wolverhampton","ASDA HOME SHOPPING","44.50","46a, Second Avenue, Low Hill","5411","Provisions (Not for resale)","19/05/2016"
"Wolverhampton City Council","http://opendatacommunities.org/id/metropolitan-district-council/wolverhampton","THE POST OFFICE","58.75","LAC Team","9402","Services - Fees and Charges","19/05/2016"
"Wolverhampton City Council","http://opendatacommunities.org/id/metropolitan-district-council/wolverhampton","SAINSBURYS SACAT (2340","7.08","Mayoral Expenses","5411","Hospitality","19/05/2016"
"Wolverhampton City Council","http://opendatacommunities.org/id/metropolitan-district-council/wolverhampton","WISEPOPSCOM","34.50","City Direct","7372","Computing - Purchase of Software","19/05/2016"
"Wolverhampton City Council","http://opendatacommunities.org/id/metropolitan-district-council/wolverhampton","Amazon EU","13.33","Technical Support","5969","Equipment - Purchase","19/05/2016"
"Wolverhampton City Council","http://opendatacommunities.org/id/metropolitan-district-council/wolverhampton","TJ HUGHES","16.66","Northicote Farm","5311","Equipment - Purchase","19/05/2016"
"Wolverhampton City Council","http://opendatacommunities.org/id/metropolitan-district-council/wolverhampton","WWW.SEVERNTRENTSEARCHE","455.00","Disposal Costs","4900","Services - Professional Fees","19/05/2016"
"Wolverhampton City Council","http://opendatacommunities.org/id/metropolitan-district-council/wolverhampton","CARESHOP","67.33","Specialist Support Service - North","5999","Cleaning Supplies and Materials","19/05/2016"
"Wolverhampton City Council","http://opendatacommunities.org/id/metropolitan-district-council/wolverhampton","UNTOUCHABLES","5.00","Education Catering - General Overheads","5231","Materials","19/05/2016"
"Wolverhampton City Council","http://opendatacommunities.org/id/metropolitan-district-council/wolverhampton","LOYD MORR WILLENHALL","250.00","CIN/CP S17 SW Unit - Area 6","6011","Financial Assistance In Exceptional Circ","19/05/2016"
"Wolverhampton City Council","http://opendatacommunities.org/id/metropolitan-district-council/wolverhampton","POLYMAX LTD","833.33","Central Baths","5085","Equipment - Purchase","19/05/2016"
"Wolverhampton City Council","http://opendatacommunities.org/id/metropolitan-district-council/wolverhampton","Amazon UK Marketplace","24.79","Technical Support","5942","Equipment - Purchase","19/05/2016"
"Wolverhampton City Council","http://opendatacommunities.org/id/metropolitan-district-council/wolverhampton","ASDA SUPERSTORE","120.26","Headstart","5411","Provisions (Not for resale)","19/05/2016"
"Wolverhampton City Council","http://opendatacommunities.org/id/metropolitan-district-council/wolverhampton","Virgintrains.co.uk","4.60","Adoption and Residence Team & Allowances","4112","Public Transport","18/05/2016"
"Wolverhampton City Council","http://opendatacommunities.org/id/metropolitan-district-council/wolverhampton","Amazon UK Marketplace","10.45","Towers Outdoor Education Centre","5942","Equipment - Purchase","18/05/2016"
"Wolverhampton City Council","http://opendatacommunities.org/id/metropolitan-district-council/wolverhampton","ESENDEX LIMITED","37.50","Civic Halls Non Direct Management A/C","4814","Comms - Telephone Call charges","18/05/2016"
"Wolverhampton City Council","http://opendatacommunities.org/id/metropolitan-district-council/wolverhampton","Amazon EU","23.95","Towers Outdoor Education Centre","5969","Equipment - Purchase","18/05/2016"
"Wolverhampton City Council","http://opendatacommunities.org/id/metropolitan-district-council/wolverhampton","Amazon UK Marketplace","8.32","Towers Outdoor Education Centre","5942","Equipment - Purchase","18/05/2016"
"Wolverhampton City Council","http://opendatacommunities.org/id/metropolitan-district-council/wolverhampton","WWW PROJECTORSHOP24 CO","212.48","Black Art Movement","5732","Equipment - Purchase","18/05/2016"
"Wolverhampton City Council","http://opendatacommunities.org/id/metropolitan-district-council/wolverhampton","A F BLAKEMORE & SON LT","447.76","Mayoral Expenses","5411","Hospitality","18/05/2016"
"Wolverhampton City Council","http://opendatacommunities.org/id/metropolitan-district-council/wolverhampton","TRAINLINE","103.12","CIN/CP S17 SW Unit - Area 5","4112","Public Transport","18/05/2016"
"Wolverhampton City Council","http://opendatacommunities.org/id/metropolitan-district-council/wolverhampton","Virgintrains.co.uk","195.00","Adoption and Residence Team & Allowances","4112","Public Transport","18/05/2016"
"Wolverhampton City Council","http://opendatacommunities.org/id/metropolitan-district-council/wolverhampton","WICKES","211.55","Northicote Farm","5211","Materials","18/05/2016"
"Wolverhampton City Council","http://opendatacommunities.org/id/metropolitan-district-council/wolverhampton","WICKES","508.23","Blakenhall Resource Centre","5211","Equipment - R & M","18/05/2016"
"Wolverhampton City Council","http://opendatacommunities.org/id/metropolitan-district-council/wolverhampton","GRO HM PASSPORT OFFICE","-23.40","Head of Service - CINCP","9399","Services - Professional Fees","18/05/2016"
"Wolverhampton City Council","http://opendatacommunities.org/id/metropolitan-district-council/wolverhampton","Amazon UK Marketplace","418.50","Customer Services","5942","Books","18/05/2016"
"Wolverhampton City Council","http://opendatacommunities.org/id/metropolitan-district-council/wolverhampton","G & M HALE LTD","95.70","Creative Studies Delivery Area","5992","Materials for resale","18/05/2016"
"Wolverhampton City Council","http://opendatacommunities.org/id/metropolitan-district-council/wolverhampton","Virgintrains.co.uk","195.00","Fostering Team & Allowances","4112","Public Transport","18/05/2016"
"Wolverhampton City Council","http://opendatacommunities.org/id/metropolitan-district-council/wolverhampton","Amazon EU","17.49","Technical Support","5969","Equipment - Purchase","18/05/2016"
"Wolverhampton City Council","http://opendatacommunities.org/id/metropolitan-district-council/wolverhampton","G & M HALE (SUNDRIES)","59.10","Creative Studies Delivery Area","5992","Materials for resale","18/05/2016"
"Wolverhampton City Council","http://opendatacommunities.org/id/metropolitan-district-council/wolverhampton","PAYPAL  THEROTA","605.57","Civic Halls Non Direct Management A/C","5735","Computing - Purchase of Software","18/05/2016"
"Wolverhampton City Council","http://opendatacommunities.org/id/metropolitan-district-council/wolverhampton","Amazon UK Marketplace","54.07","College of Further Education","5942","Computing - Consumables","18/05/2016"
"Wolverhampton City Council","http://opendatacommunities.org/id/metropolitan-district-council/wolverhampton","ROYAL CARPETS","220.00","CIN/CP S17 SW Unit - Area 3B","5713","Equipment - Purchase","18/05/2016"
"Wolverhampton City Council","http://opendatacommunities.org/id/metropolitan-district-council/wolverhampton","TRAINLINE","59.72","Director of Education","4112","Public Transport","18/05/2016"
"Wolverhampton City Council","http://opendatacommunities.org/id/metropolitan-district-council/wolverhampton","Amazon UK Marketplace","93.32","College of Further Education","5942","Computing - Consumables","18/05/2016"
"Wolverhampton City Council","http://opendatacommunities.org/id/metropolitan-district-council/wolverhampton","PEAR TREE INN","55.00","Workforce Development","7011","Accommodation Costs","18/05/2016"
"Wolverhampton City Council","http://opendatacommunities.org/id/metropolitan-district-council/wolverhampton","THE COAL AUTHORITY","90.00","Disposal Costs","9399","Services - Professional Fees","18/05/2016"
"Wolverhampton City Council","http://opendatacommunities.org/id/metropolitan-district-council/wolverhampton","Cross Country","115.10","School Improvement","4112","Public Transport","18/05/2016"
"Wolverhampton City Council","http://opendatacommunities.org/id/metropolitan-district-council/wolverhampton","Amazon UK Marketplace","46.67","Towers Outdoor Education Centre","5942","Equipment - Purchase","18/05/2016"
"Wolverhampton City Council","http://opendatacommunities.org/id/metropolitan-district-council/wolverhampton","CENTURY ELECTRICAL WHO","29.00","Caretakers Community Centre","5065","R&M - Departmental planned (external)","18/05/2016"
"Wolverhampton City Council","http://opendatacommunities.org/id/metropolitan-district-council/wolverhampton","ARGOS LTD","63.32","LAC Transitions Team","5310","Client Allowances","18/05/2016"
"Wolverhampton City Council","http://opendatacommunities.org/id/metropolitan-district-council/wolverhampton","ITUNES.COM/BILL","0.79","Civic Halls Non Direct Management A/C","5735","Computing - Purchase of Software","18/05/2016"
"Wolverhampton City Council","http://opendatacommunities.org/id/metropolitan-district-council/wolverhampton","STAFFORDSHIRE COUNTY C","10.00","Childrens with Disabilities Team","9399","Services - Fees and Charges","18/05/2016"
"Wolverhampton City Council","http://opendatacommunities.org/id/metropolitan-district-council/wolverhampton","HSBC CASH MACHINE","100.00","Hostels / Outreach","6011","Financial Assistance In Exceptional Circ","18/05/2016"
"Wolverhampton City Council","http://opendatacommunities.org/id/metropolitan-district-council/wolverhampton","Amazon UK Marketplace","345.08","College of Further Education","5942","Computing - Consumables","18/05/2016"
"Wolverhampton City Council","http://opendatacommunities.org/id/metropolitan-district-council/wolverhampton","EE & T-MOBILE","151.81","Civic Halls Non Direct Management A/C","4814","Comms - Telephone Call charges","18/05/2016"
"Wolverhampton City Council","http://opendatacommunities.org/id/metropolitan-district-council/wolverhampton","THE COAL AUTHORITY","32.50","Property Services - Commissioning","9399","Services - Professional Fees","18/05/2016"
"Wolverhampton City Council","http://opendatacommunities.org/id/metropolitan-district-council/wolverhampton","WWW.TROPHYSTORE.CO.UK","142.50","Headstart","5947","Equipment - Purchase","18/05/2016"
"Wolverhampton City Council","http://opendatacommunities.org/id/metropolitan-district-council/wolverhampton","G & M HALE LTD","154.70","Discretionary Fund","5992","Materials","18/05/2016"
"Wolverhampton City Council","http://opendatacommunities.org/id/metropolitan-district-council/wolverhampton","TESCO STORES 5194","403.58","Towers Outdoor Education Centre","5411","Provisions (Not for resale)","18/05/2016"
"Wolverhampton City Council","http://opendatacommunities.org/id/metropolitan-district-council/wolverhampton","E01510300000000","60.00","Emergency Duty Team","6011","Financial Assistance In Exceptional Circ","18/05/2016"
"Wolverhampton City Council","http://opendatacommunities.org/id/metropolitan-district-council/wolverhampton","CUMMINGS BROTHERS LOCK","24.50","Culwell Street Depot","7399","R&M - Departmental planned (external)","18/05/2016"
"Wolverhampton City Council","http://opendatacommunities.org/id/metropolitan-district-council/wolverhampton","Virgintrains.co.uk","4.60","Adoption and Residence Team & Allowances","4112","Public Transport","18/05/2016"
"Wolverhampton City Council","http://opendatacommunities.org/id/metropolitan-district-council/wolverhampton","PREMIER INN","93.49","Fostering Team & Allowances","3811","Services - Supplies & Services to users","18/05/2016"
"Wolverhampton City Council","http://opendatacommunities.org/id/metropolitan-district-council/wolverhampton","YMLP.COM","63.00","Art Gallery","7372","Computing - Purchase of Software","17/05/2016"
"Wolverhampton City Council","http://opendatacommunities.org/id/metropolitan-district-council/wolverhampton","TOOLSTATION LTD","31.18","Education Catering - General Overheads","5251","Equipment - Purchase","17/05/2016"
"Wolverhampton City Council","http://opendatacommunities.org/id/metropolitan-district-council/wolverhampton","SAINSBURYS 2040","20.50","Duke Street Bungalows","5411","Provisions (Not for resale)","17/05/2016"
"Wolverhampton City Council","http://opendatacommunities.org/id/metropolitan-district-council/wolverhampton","DUNELM (SOFT FURNISHIN","367.20","Education Catering - General Overheads","5714","Equipment - Purchase","17/05/2016"
"Wolverhampton City Council","http://opendatacommunities.org/id/metropolitan-district-council/wolverhampton","BEATTIES","150.00","Mayoral Expenses","5311","Gratuities","17/05/2016"
"Wolverhampton City Council","http://opendatacommunities.org/id/metropolitan-district-council/wolverhampton","REGISTRARS OFFICE","10.00","Adoption and Residence Team & Allowances","8299","Services - Fees and Charges","17/05/2016"
"Wolverhampton City Council","http://opendatacommunities.org/id/metropolitan-district-council/wolverhampton","PREMIER INN","165.98","Emergency Duty Team","3811","Services - Supplies & Services to users","17/05/2016"
"Wolverhampton City Council","http://opendatacommunities.org/id/metropolitan-district-council/wolverhampton","WWW.SHEDSTORE.CO.UK","191.66","Northicote Farm","5211","Materials","17/05/2016"
"Wolverhampton City Council","http://opendatacommunities.org/id/metropolitan-district-council/wolverhampton","Amazon UK Marketplace","2.47","Blakenhall Commty & Healthy Living Ctr","5942","Provisions (Resale)","17/05/2016"
"Wolverhampton City Council","http://opendatacommunities.org/id/metropolitan-district-council/wolverhampton","WWW.BAKERROSS.CO.UK","19.15","Bilston Museum","5970","Materials","17/05/2016"
"Wolverhampton City Council","http://opendatacommunities.org/id/metropolitan-district-council/wolverhampton","TRAINLINE","34.63","Legal Services","4112","Public Transport","17/05/2016"
"Wolverhampton City Council","http://opendatacommunities.org/id/metropolitan-district-council/wolverhampton","TRAINLINE","62.93","Director of Governance","4112","Public Transport","17/05/2016"
"Wolverhampton City Council","http://opendatacommunities.org/id/metropolitan-district-council/wolverhampton","HOUSE OF FRASER","47.20","Delivery & OCE Development","5311","Equipment - Purchase","17/05/2016"
"Wolverhampton City Council","http://opendatacommunities.org/id/metropolitan-district-council/wolverhampton","ASDA HOME SHOPPING","87.72","Ernest Bold Court","5411","Provisions (Not for resale)","17/05/2016"
"Wolverhampton City Council","http://opendatacommunities.org/id/metropolitan-district-council/wolverhampton","ASDA HOME SHOPPING","0.05","Ernest Bold Court","5411","Provisions (Not for resale)","17/05/2016"
"Wolverhampton City Council","http://opendatacommunities.org/id/metropolitan-district-council/wolverhampton","Amazon UK Marketplace","111.60","Customer Services","5942","Books","17/05/2016"
"Wolverhampton City Council","http://opendatacommunities.org/id/metropolitan-district-council/wolverhampton","ROYAL CARPETS","150.00","LAC Transitions Team","5713","Client Allowances","17/05/2016"
"Wolverhampton City Council","http://opendatacommunities.org/id/metropolitan-district-council/wolverhampton","WIGAN COUNCIL","12.18","Head of Service - CINCP","9399","Services - Professional Fees","17/05/2016"
"Wolverhampton City Council","http://opendatacommunities.org/id/metropolitan-district-council/wolverhampton","TRAINLINE","128.01","Adoption and Residence Team & Allowances","4112","Public Transport","17/05/2016"
"Wolverhampton City Council","http://opendatacommunities.org/id/metropolitan-district-council/wolverhampton","REDWINGS LODGE","45.79","Mental Health Assessment & Care Mgmt","7011","Services - Supplies & Services to users","17/05/2016"
"Wolverhampton City Council","http://opendatacommunities.org/id/metropolitan-district-council/wolverhampton","SAINSBURYS (2340)","49.55","Discretionary Fund","5411","Provisions (Not for resale)","17/05/2016"
"Wolverhampton City Council","http://opendatacommunities.org/id/metropolitan-district-council/wolverhampton","Amazon UK Marketplace","52.97","Bert Williams Leisure Centre","5942","Equipment - Purchase","17/05/2016"
"Wolverhampton City Council","http://opendatacommunities.org/id/metropolitan-district-council/wolverhampton","Amazon UK Marketplace","-35.69","School Crossing Patrol","5999","Equipment - Purchase","17/05/2016"
"Wolverhampton City Council","http://opendatacommunities.org/id/metropolitan-district-council/wolverhampton","REDWINGS LODGE","262.33","CIN/CP S17 SW Unit - Area 2","7011","TPP - B&B payments to landlords","17/05/2016"
"Wolverhampton City Council","http://opendatacommunities.org/id/metropolitan-district-council/wolverhampton","GRO HM PASSPORT OFFICE","70.20","Head of Service - CINCP","9399","Services - Professional Fees","17/05/2016"
"Wolverhampton City Council","http://opendatacommunities.org/id/metropolitan-district-council/wolverhampton","ASDA HOME SHOPPING","-0.04","Ernest Bold Court","5411","Provisions (Not for resale)","16/05/2016"
"Wolverhampton City Council","http://opendatacommunities.org/id/metropolitan-district-council/wolverhampton","Amazon EU","12.05","Psychology Service","5969","Equipment - Purchase","16/05/2016"
"Wolverhampton City Council","http://opendatacommunities.org/id/metropolitan-district-council/wolverhampton","POST OFFICE COUNTER","24.79","Learning Disabilities Management","9402","Comms - Postage","16/05/2016"
"Wolverhampton City Council","http://opendatacommunities.org/id/metropolitan-district-council/wolverhampton","TRAINLINE","60.08","Service Director Older People","4112","Public Transport","16/05/2016"
"Wolverhampton City Council","http://opendatacommunities.org/id/metropolitan-district-council/wolverhampton","Amazon UK Marketplace","55.69","Register Office","5942","Stationery","16/05/2016"
"Wolverhampton City Council","http://opendatacommunities.org/id/metropolitan-district-council/wolverhampton","SAIN ST MARKS","250.00","Childrens with Disabilities Team","6011","Financial Assistance In Exceptional Circ","16/05/2016"
"Wolverhampton City Council","http://opendatacommunities.org/id/metropolitan-district-council/wolverhampton","SHELL KLOOSTERS NL 685","60.03","Mayoral Expenses","5541","Petrol","16/05/2016"
"Wolverhampton City Council","http://opendatacommunities.org/id/metropolitan-district-council/wolverhampton","Amazon EU","12.06","Psychology Service","5969","Equipment - Purchase","16/05/2016"
"Wolverhampton City Council","http://opendatacommunities.org/id/metropolitan-district-council/wolverhampton","Amazon EU","12.05","Psychology Service","5969","Equipment - Purchase","16/05/2016"
"Wolverhampton City Council","http://opendatacommunities.org/id/metropolitan-district-council/wolverhampton","FTPE WEBTIS 1","19.00","LAC Transitions Team","4112","Client Allowances","16/05/2016"
"Wolverhampton City Council","http://opendatacommunities.org/id/metropolitan-district-council/wolverhampton","THE POST OFFICE","174.00","Macmillan Welfare Rights","9402","Comms - Postage","16/05/2016"
"Wolverhampton City Council","http://opendatacommunities.org/id/metropolitan-district-council/wolverhampton","TVLICENSING.CO.UK","145.50","LAC Admin Team","7392","Client Allowances","16/05/2016"
"Wolverhampton City Council","http://opendatacommunities.org/id/metropolitan-district-council/wolverhampton","Rhodos","10.33","Mayoral Expenses","5812","Hospitality","16/05/2016"
"Wolverhampton City Council","http://opendatacommunities.org/id/metropolitan-district-council/wolverhampton","Amazon EU","12.06","Psychology Service","5969","Equipment - Purchase","16/05/2016"
"Wolverhampton City Council","http://opendatacommunities.org/id/metropolitan-district-council/wolverhampton","POST OFFICE COUNTER","7.55","CIN/CP Social Work Unit - Area 4","9402","Comms - Postage","16/05/2016"
"Wolverhampton City Council","http://opendatacommunities.org/id/metropolitan-district-council/wolverhampton","NOTEMACHINE","250.00","CIN/CP S17 SW Unit - Area 6","6011","Accommodation Costs","16/05/2016"
"Wolverhampton City Council","http://opendatacommunities.org/id/metropolitan-district-council/wolverhampton","M6 TOLL","4.00","Mayoral Expenses","4784","Parking Fees","16/05/2016"
"Wolverhampton City Council","http://opendatacommunities.org/id/metropolitan-district-council/wolverhampton","Amazon EU","12.05","Psychology Service","5969","Equipment - Purchase","16/05/2016"
"Wolverhampton City Council","http://opendatacommunities.org/id/metropolitan-district-council/wolverhampton","NEXT RETAIL LTD","12.50","Mayoral Expenses","5651","Clothing / Uniforms","16/05/2016"
"Wolverhampton City Council","http://opendatacommunities.org/id/metropolitan-district-council/wolverhampton","Amazon EU","12.05","Psychology Service","5969","Equipment - Purchase","16/05/2016"
"Wolverhampton City Council","http://opendatacommunities.org/id/metropolitan-district-council/wolverhampton","TRAINLINE","57.83","CIN/CP S17 SW Unit - Area 8","4112","Services - Supplies & Services to users","16/05/2016"
"Wolverhampton City Council","http://opendatacommunities.org/id/metropolitan-district-council/wolverhampton","Wix.com","46.57","Technical Support","5817","Computing - Purchase of Software","16/05/2016"
"Wolverhampton City Council","http://opendatacommunities.org/id/metropolitan-district-council/wolverhampton","REDWINGS LODGE","6.62","CIN/CP S17 SW Unit - Area 2","7011","TPP - B&B payments to landlords","16/05/2016"
"Wolverhampton City Council","http://opendatacommunities.org/id/metropolitan-district-council/wolverhampton","MERCURE HULL WEST HOTE","71.10","Fostering Team & Allowances","7011","Services - Supplies & Services to users","16/05/2016"
"Wolverhampton City Council","http://opendatacommunities.org/id/metropolitan-district-council/wolverhampton","Amazon EU","12.06","Psychology Service","5969","Equipment - Purchase","16/05/2016"
"Wolverhampton City Council","http://opendatacommunities.org/id/metropolitan-district-council/wolverhampton","Dover Seaways","9.12","Mayoral Expenses","4111","Hospitality","16/05/2016"
"Wolverhampton City Council","http://opendatacommunities.org/id/metropolitan-district-council/wolverhampton","Amazon UK Marketplace","4.87","Pupil Premium","5942","Books","16/05/2016"
"Wolverhampton City Council","http://opendatacommunities.org/id/metropolitan-district-council/wolverhampton","Wix.com","46.57","Technical Support","5817","Computing - Purchase of Software","16/05/2016"
"Wolverhampton City Council","http://opendatacommunities.org/id/metropolitan-district-council/wolverhampton","ASDA HOME SHOPPING","92.63","Ernest Bold Court","5411","Provisions (Not for resale)","16/05/2016"
"Wolverhampton City Council","http://opendatacommunities.org/id/metropolitan-district-council/wolverhampton","Amazon EU","12.06","Psychology Service","5969","Equipment - Purchase","16/05/2016"
"Wolverhampton City Council","http://opendatacommunities.org/id/metropolitan-district-council/wolverhampton","REDWINGS LODGE","49.95","Emergency Duty Team","7011","Services - Supplies & Services to users","16/05/2016"
"Wolverhampton City Council","http://opendatacommunities.org/id/metropolitan-district-council/wolverhampton","BILSTON CARPETS","87.00","LAC Team","5713","Equipment - Purchase","16/05/2016"
"Wolverhampton City Council","http://opendatacommunities.org/id/metropolitan-district-council/wolverhampton","FLETCHER HOTEL S HERT","573.52","Mayoral Expenses","7011","Accommodation Costs","16/05/2016"
"Wolverhampton City Council","http://opendatacommunities.org/id/metropolitan-district-council/wolverhampton","REDWINGS LODGE","7.95","Emergency Duty Team","7011","Services - Supplies & Services to users","16/05/2016"
"Wolverhampton City Council","http://opendatacommunities.org/id/metropolitan-district-council/wolverhampton","Amazon EU","12.05","Psychology Service","5969","Equipment - Purchase","16/05/2016"
"Wolverhampton City Council","http://opendatacommunities.org/id/metropolitan-district-council/wolverhampton","Amazon EU","12.06","Psychology Service","5969","Equipment - Purchase","16/05/2016"
"Wolverhampton City Council","http://opendatacommunities.org/id/metropolitan-district-council/wolverhampton","Virgintrains.co.uk","120.10","Information & Intelligence","4112","Public Transport","16/05/2016"
"Wolverhampton City Council","http://opendatacommunities.org/id/metropolitan-district-council/wolverhampton","ASDA SUPERSTORE","41.57","LAC Transitions Team","5411","Client Allowances","13/05/2016"
"Wolverhampton City Council","http://opendatacommunities.org/id/metropolitan-district-council/wolverhampton","ARGOS RETAIL GROUP","49.99","CIN/CP S17 SW Unit - Area 8","5310","Services - Supplies & Services to users","13/05/2016"
"Wolverhampton City Council","http://opendatacommunities.org/id/metropolitan-district-council/wolverhampton","PINNACLE RESPONSE LTD","833.33","Private Sector Housing","5999","Equipment - Purchase","13/05/2016"
"Wolverhampton City Council","http://opendatacommunities.org/id/metropolitan-district-council/wolverhampton","MICHAEL LINNELL &","70.19","Revenues","5943","Stationery","13/05/2016"
"Wolverhampton City Council","http://opendatacommunities.org/id/metropolitan-district-council/wolverhampton","YOUNGS SHOE REPAIRS LI","11.80","Wolverhampton Indoor and Open Market","7251","Fixtures and Fittings - R&M","13/05/2016"
"Wolverhampton City Council","http://opendatacommunities.org/id/metropolitan-district-council/wolverhampton","LOYD WEDNESFIELD WOLVE","140.00","Duke Street Bungalows","6011","Room Hire","13/05/2016"
"Wolverhampton City Council","http://opendatacommunities.org/id/metropolitan-district-council/wolverhampton","B AND Q 1243","35.45","Ernest Bold Court","5211","Equipment - R & M","13/05/2016"
"Wolverhampton City Council","http://opendatacommunities.org/id/metropolitan-district-council/wolverhampton","HORNERSHEARING.COM","65.95","Northicote Farm","5251","Equipment - Purchase","13/05/2016"
"Wolverhampton City Council","http://opendatacommunities.org/id/metropolitan-district-council/wolverhampton","SAIN WEDNESFIELD","100.00","Duke Street Bungalows","6011","Room Hire","13/05/2016"
"Wolverhampton City Council","http://opendatacommunities.org/id/metropolitan-district-council/wolverhampton","TRAINLINE","55.59","Headstart","4112","Public Transport","13/05/2016"
"Wolverhampton City Council","http://opendatacommunities.org/id/metropolitan-district-council/wolverhampton","LOYD WEDNESFIELD WOLVE","100.00","Duke Street Bungalows","6011","Public Transport","13/05/2016"
"Wolverhampton City Council","http://opendatacommunities.org/id/metropolitan-district-council/wolverhampton","REDWINGS LODGE","229.00","CIN/CP S17 SW Unit - Area 2","7011","TPP - B&B payments to landlords","13/05/2016"
"Wolverhampton City Council","http://opendatacommunities.org/id/metropolitan-district-council/wolverhampton","PINNACLE RESPONSE LTD","430.83","Private Sector Housing","5999","Equipment - Purchase","13/05/2016"
"Wolverhampton City Council","http://opendatacommunities.org/id/metropolitan-district-council/wolverhampton","W M MORRISON PLC","52.50","Ernest Bold Court","5411","Provisions (Not for resale)","13/05/2016"
"Wolverhampton City Council","http://opendatacommunities.org/id/metropolitan-district-council/wolverhampton","SAIN WEDNESFIELD","100.00","Duke Street Bungalows","6011","Public Transport","13/05/2016"
"Wolverhampton City Council","http://opendatacommunities.org/id/metropolitan-district-council/wolverhampton","THE POST OFFICE","68.50","LAC Team","9402","Services - Fees and Charges","13/05/2016"
"Wolverhampton City Council","http://opendatacommunities.org/id/metropolitan-district-council/wolverhampton","PINNACLE RESPONSE LTD","833.33","Private Sector Housing","5999","Equipment - Purchase","13/05/2016"
"Wolverhampton City Council","http://opendatacommunities.org/id/metropolitan-district-council/wolverhampton","SAINSBURYS PFS 0136","10.00","Telecare","5541","Comms - Mobile Telephones","13/05/2016"
"Wolverhampton City Council","http://opendatacommunities.org/id/metropolitan-district-council/wolverhampton","HOLIDAY EXTRAS","68.02","Leonardo Da Vinci Project","4722","Public Transport","13/05/2016"
"Wolverhampton City Council","http://opendatacommunities.org/id/metropolitan-district-council/wolverhampton","Amazon UK Marketplace","102.98","Landscape","5942","Computing - Purchase of Hardware","13/05/2016"
"Wolverhampton City Council","http://opendatacommunities.org/id/metropolitan-district-council/wolverhampton","THE CASTLE HOTEL","98.00","Macmillan Welfare Rights","7011","Accommodation Costs","13/05/2016"
"Wolverhampton City Council","http://opendatacommunities.org/id/metropolitan-district-council/wolverhampton","Amazon UK Marketplace","3.02","Pupil Premium","5942","Equipment - Purchase","13/05/2016"
"Wolverhampton City Council","http://opendatacommunities.org/id/metropolitan-district-council/wolverhampton","NATWEST BANK","100.00","Democratic Support","6011","Public Transport","13/05/2016"
"Wolverhampton City Council","http://opendatacommunities.org/id/metropolitan-district-council/wolverhampton","DVSA","401.00","Fleet Management","9399","Subscriptions","13/05/2016"
"Wolverhampton City Council","http://opendatacommunities.org/id/metropolitan-district-council/wolverhampton","TRAINLINE","175.95","Safeguarding Admin Resource","4112","Public Transport","13/05/2016"
"Wolverhampton City Council","http://opendatacommunities.org/id/metropolitan-district-council/wolverhampton","M6 TOLL","4.58","Mayoral Expenses","4784","Parking Fees","13/05/2016"
"Wolverhampton City Council","http://opendatacommunities.org/id/metropolitan-district-council/wolverhampton","TRAINLINE","20.15","LAC Admin Team","4112","Client Allowances","13/05/2016"
"Wolverhampton City Council","http://opendatacommunities.org/id/metropolitan-district-council/wolverhampton","JONES SKIP HIRE (WOLVE","176.12","MAST - Central Team","7399","Equipment - Purchase","13/05/2016"
"Wolverhampton City Council","http://opendatacommunities.org/id/metropolitan-district-council/wolverhampton","SAIN WEDNESFIELD","100.00","Duke Street Bungalows","6011","Public Transport","13/05/2016"
"Wolverhampton City Council","http://opendatacommunities.org/id/metropolitan-district-council/wolverhampton","ARGOS RETAIL GROUP","296.94","LAC Admin Team","5310","Client Allowances","12/05/2016"
"Wolverhampton City Council","http://opendatacommunities.org/id/metropolitan-district-council/wolverhampton","POST OFFICE COUNTER","6.04","Cemeteries","9402","Comms - Postage","12/05/2016"
"Wolverhampton City Council","http://opendatacommunities.org/id/metropolitan-district-council/wolverhampton","Virgintrains.co.uk","255.00","LAC Team","4112","Public Transport","12/05/2016"
"Wolverhampton City Council","http://opendatacommunities.org/id/metropolitan-district-council/wolverhampton","Virgintrains.co.uk","170.00","Planning","4112","Public Transport","12/05/2016"
"Wolverhampton City Council","http://opendatacommunities.org/id/metropolitan-district-council/wolverhampton","ASDA HOME SHOPPING","-0.12","Ernest Bold Court","5411","Provisions (Not for resale)","12/05/2016"
"Wolverhampton City Council","http://opendatacommunities.org/id/metropolitan-district-council/wolverhampton","REGISTRARS OFFICE","30.00","Head of Service - CINCP","8299","Services - Professional Fees","12/05/2016"
"Wolverhampton City Council","http://opendatacommunities.org/id/metropolitan-district-council/wolverhampton","HOTELS COM129600468858","49.95","CIN - Referral Hub","4722","No Recourse to Public Funds","12/05/2016"
"Wolverhampton City Council","http://opendatacommunities.org/id/metropolitan-district-council/wolverhampton","CURRYS S/S","554.16","Technical Support","5732","Equipment - Purchase","12/05/2016"
"Wolverhampton City Council","http://opendatacommunities.org/id/metropolitan-district-council/wolverhampton","PEAR TREE INN","55.00","Workforce Development","7011","Accommodation Costs","12/05/2016"
"Wolverhampton City Council","http://opendatacommunities.org/id/metropolitan-district-council/wolverhampton","BARCLAYS BANK PLC","250.00","CIN/CP S17 SW Unit - Area 5","6011","Financial Assistance In Exceptional Circ","12/05/2016"
"Wolverhampton City Council","http://opendatacommunities.org/id/metropolitan-district-council/wolverhampton","BOOTS,BILSTON","22.00","EIP Locality 3","5912","Toilet Requisites","12/05/2016"
"Wolverhampton City Council","http://opendatacommunities.org/id/metropolitan-district-council/wolverhampton","CENTURY ELECTRICAL WHO","12.60","Public Conveniences","5065","R&M - Departmental planned (external)","12/05/2016"
"Wolverhampton City Council","http://opendatacommunities.org/id/metropolitan-district-council/wolverhampton","ASDA SUPERSTORE","200.00","CIN/CP S17 SW Unit - Area 5","5411","Provisions (Not for resale)","12/05/2016"
"Wolverhampton City Council","http://opendatacommunities.org/id/metropolitan-district-council/wolverhampton","WICKES","46.92","Street Lighting Maintenance","5211","Materials","12/05/2016"
"Wolverhampton City Council","http://opendatacommunities.org/id/metropolitan-district-council/wolverhampton","WWW.LUMINATI.CO.UK","176.90","EIP Locality 8","8244","Equipment - Purchase","12/05/2016"
"Wolverhampton City Council","http://opendatacommunities.org/id/metropolitan-district-council/wolverhampton","SCREWFIX DIRECT","29.16","Cleaning of Buildings - General","5211","Equipment - Purchase","12/05/2016"
"Wolverhampton City Council","http://opendatacommunities.org/id/metropolitan-district-council/wolverhampton","ARGOS RETAIL GROUP","49.12","CIN/CP S17 SW Unit - Area 3A","5310","Furniture","12/05/2016"
"Wolverhampton City Council","http://opendatacommunities.org/id/metropolitan-district-council/wolverhampton","REGISTRARS OFFICE","120.00","Head of Service - CINCP","8299","Services - Professional Fees","12/05/2016"
"Wolverhampton City Council","http://opendatacommunities.org/id/metropolitan-district-council/wolverhampton","POST OFFICE COUNTER","15.36","Vulnerable Young Persons Team","9402","Comms - Postage","12/05/2016"
"Wolverhampton City Council","http://opendatacommunities.org/id/metropolitan-district-council/wolverhampton","B&M RETAIL","68.72","Youth Offending Team","5310","Equipment - Purchase","12/05/2016"
"Wolverhampton City Council","http://opendatacommunities.org/id/metropolitan-district-council/wolverhampton","BLAS AR FWYD CYF","74.66","Towers Outdoor Education Centre","5812","Provisions (Not for resale)","12/05/2016"
"Wolverhampton City Council","http://opendatacommunities.org/id/metropolitan-district-council/wolverhampton","PREMIERMEETINGS.CO.UK","277.20","Headstart","7399","Equipment - Purchase","12/05/2016"
"Wolverhampton City Council","http://opendatacommunities.org/id/metropolitan-district-council/wolverhampton","SCREWFIX DIRECT","189.07","Street Lighting Maintenance","5211","Materials","12/05/2016"
"Wolverhampton City Council","http://opendatacommunities.org/id/metropolitan-district-council/wolverhampton","FSPRG.COM INFFUSE.COM","5.05","Technical Support","5734","Computing - Purchase of Software","12/05/2016"
"Wolverhampton City Council","http://opendatacommunities.org/id/metropolitan-district-council/wolverhampton","Amazon UK Marketplace","58.30","Bert Williams Leisure Centre","5942","Equipment - Purchase","12/05/2016"
"Wolverhampton City Council","http://opendatacommunities.org/id/metropolitan-district-council/wolverhampton","REDWINGS LODGE","49.95","CIN/CP S17 SW Unit - Area 8","7011","Services - Supplies & Services to users","12/05/2016"
"Wolverhampton City Council","http://opendatacommunities.org/id/metropolitan-district-council/wolverhampton","BARCLAYS BANK PLC","250.00","CIN/CP S17 SW Unit - Area 5","6011","Financial Assistance In Exceptional Circ","12/05/2016"
"Wolverhampton City Council","http://opendatacommunities.org/id/metropolitan-district-council/wolverhampton","G & M HALE (SUNDRIES)","22.45","Discretionary Fund","5992","Materials","11/05/2016"
"Wolverhampton City Council","http://opendatacommunities.org/id/metropolitan-district-council/wolverhampton","ARGOS LTD","14.13","CIN/CP S17 SW Unit - Area 3A","5310","Financial Assistance In Exceptional Circ","11/05/2016"
"Wolverhampton City Council","http://opendatacommunities.org/id/metropolitan-district-council/wolverhampton","CIEH","238.80","School Meals Statutory Standards","8699","Training Expenses","11/05/2016"
"Wolverhampton City Council","http://opendatacommunities.org/id/metropolitan-district-council/wolverhampton","ASDA SUPERSTORE","51.99","Headstart","5411","Provisions (Not for resale)","11/05/2016"
"Wolverhampton City Council","http://opendatacommunities.org/id/metropolitan-district-council/wolverhampton","ROYAL CARPETS","207.00","CIN/CP S17 SW Unit - Area 3B","5713","Equipment - Purchase","11/05/2016"
"Wolverhampton City Council","http://opendatacommunities.org/id/metropolitan-district-council/wolverhampton","REDWINGS LODGE","43.95","CIN/CP S17 SW Unit - Area 8","7011","Services - Supplies & Services to users","11/05/2016"
"Wolverhampton City Council","http://opendatacommunities.org/id/metropolitan-district-council/wolverhampton","G & M HALE LTD","96.00","Discretionary Fund","5992","Materials","11/05/2016"
"Wolverhampton City Council","http://opendatacommunities.org/id/metropolitan-district-council/wolverhampton","THE YORK HOTEL","60.00","Emergency Duty Team","7011","Services - Supplies & Services to users","11/05/2016"
"Wolverhampton City Council","http://opendatacommunities.org/id/metropolitan-district-council/wolverhampton","IKEA ONLINE","30.42","LAC Transitions Team","5719","Client Allowances","11/05/2016"
"Wolverhampton City Council","http://opendatacommunities.org/id/metropolitan-district-council/wolverhampton","CLINTONS 45","5.00","Mayoral Expenses","5947","Hospitality","11/05/2016"
"Wolverhampton City Council","http://opendatacommunities.org/id/metropolitan-district-council/wolverhampton","ROYAL CARPETS","200.00","CIN/CP S17 SW Unit - Area 3A","5713","Furniture","11/05/2016"
"Wolverhampton City Council","http://opendatacommunities.org/id/metropolitan-district-council/wolverhampton","Amazon UK Marketplace","49.90","Northicote Farm","5942","Clothing / Uniforms","11/05/2016"
"Wolverhampton City Council","http://opendatacommunities.org/id/metropolitan-district-council/wolverhampton","WWW.CARESHOP.CO.UK","57.18","Ernest Bold Court","5999","Cleaning Supplies and Materials","11/05/2016"
"Wolverhampton City Council","http://opendatacommunities.org/id/metropolitan-district-council/wolverhampton","PAYPAL  CEL-UK","1009.80","Learning Technologies","5099","Equipment - Purchase","11/05/2016"
"Wolverhampton City Council","http://opendatacommunities.org/id/metropolitan-district-council/wolverhampton","TIPPERS WOLVERHAMPTON","5.11","Culwell Street Depot","5072","R&M - Departmental planned (external)","11/05/2016"
"Wolverhampton City Council","http://opendatacommunities.org/id/metropolitan-district-council/wolverhampton","CARVER/WOLVERHAMPTON/L","43.42","Wholesale Market Facilities Management","5211","Cleaning Supplies and Materials","11/05/2016"
"Wolverhampton City Council","http://opendatacommunities.org/id/metropolitan-district-council/wolverhampton","Amazon UK Marketplace","45.98","Northicote Farm","5942","Clothing / Uniforms","11/05/2016"
"Wolverhampton City Council","http://opendatacommunities.org/id/metropolitan-district-council/wolverhampton","E01510300000000","83.33","Emergency Duty Team","6011","Financial Assistance In Exceptional Circ","11/05/2016"
"Wolverhampton City Council","http://opendatacommunities.org/id/metropolitan-district-council/wolverhampton","PREMIERMEETINGS.CO.UK","201.60","Headstart","7399","Equipment - Purchase","11/05/2016"
"Wolverhampton City Council","http://opendatacommunities.org/id/metropolitan-district-council/wolverhampton","CUMMINGS BROTHERS LOCK","16.67","Parkfields Centre","7399","Equipment - Purchase","11/05/2016"
"Wolverhampton City Council","http://opendatacommunities.org/id/metropolitan-district-council/wolverhampton","WWW.LUMINATI.CO.UK","176.90","EIP Locality 8","8244","Equipment - Purchase","11/05/2016"
"Wolverhampton City Council","http://opendatacommunities.org/id/metropolitan-district-council/wolverhampton","Amazon EU","35.19","Northicote Farm","5969","Clothing / Uniforms","11/05/2016"
"Wolverhampton City Council","http://opendatacommunities.org/id/metropolitan-district-council/wolverhampton","Wix.com","1.90","Technical Support","5817","Computing - Purchase of Software","11/05/2016"
"Wolverhampton City Council","http://opendatacommunities.org/id/metropolitan-district-council/wolverhampton","TESCO STORES 5194","122.82","Towers Outdoor Education Centre","5411","Provisions (Not for resale)","11/05/2016"
"Wolverhampton City Council","http://opendatacommunities.org/id/metropolitan-district-council/wolverhampton","Virgintrains.co.uk","103.10","Private Sector Housing","4112","Public Transport","11/05/2016"
"Wolverhampton City Council","http://opendatacommunities.org/id/metropolitan-district-council/wolverhampton","STERMAT CAR AND VAN HI","738.55","Towers Outdoor Education Centre","5521","Hire of Vehicles","11/05/2016"
"Wolverhampton City Council","http://opendatacommunities.org/id/metropolitan-district-council/wolverhampton","POST OFFICE COUNTER","58.75","LAC Team","9402","Comms - Postage","11/05/2016"
"Wolverhampton City Council","http://opendatacommunities.org/id/metropolitan-district-council/wolverhampton","REDWINGS LODGE","6.00","CIN/CP S17 SW Unit - Area 8","7011","Services - Supplies & Services to users","11/05/2016"
"Wolverhampton City Council","http://opendatacommunities.org/id/metropolitan-district-council/wolverhampton","ROYAL CARPETS","179.00","CIN/CP S17 SW Unit - Area 3A","5713","Financial Assistance In Exceptional Circ","11/05/2016"
"Wolverhampton City Council","http://opendatacommunities.org/id/metropolitan-district-council/wolverhampton","ROYAL CARPETS","269.00","CIN/CP S17 SW Unit - Area 3A","5713","Equipment - Purchase","11/05/2016"
"Wolverhampton City Council","http://opendatacommunities.org/id/metropolitan-district-council/wolverhampton","ASDA SUPERSTORE","16.00","CIN/CP S17 SW Unit - Area 3B","5411","Provisions (Not for resale)","11/05/2016"
"Wolverhampton City Council","http://opendatacommunities.org/id/metropolitan-district-council/wolverhampton","Amazon EU","27.54","School Improvement","5969","Equipment - Purchase","11/05/2016"
"Wolverhampton City Council","http://opendatacommunities.org/id/metropolitan-district-council/wolverhampton","Amazon UK Marketplace","58.74","EIP Locality 8","5942","Equipment - Purchase","11/05/2016"
"Wolverhampton City Council","http://opendatacommunities.org/id/metropolitan-district-council/wolverhampton","Amazon EU","16.87","Northicote Farm","5969","Clothing / Uniforms","11/05/2016"
"Wolverhampton City Council","http://opendatacommunities.org/id/metropolitan-district-council/wolverhampton","WM MORRISON 024","13.00","Fostering Team & Allowances","5411","Provisions (Not for resale)","11/05/2016"
"Wolverhampton City Council","http://opendatacommunities.org/id/metropolitan-district-council/wolverhampton","G & M HALE (SUNDRIES)","32.85","Creative Studies Delivery Area","5992","Materials for resale","11/05/2016"
"Wolverhampton City Council","http://opendatacommunities.org/id/metropolitan-district-council/wolverhampton","TFM FARM & COUNTRY SUP","118.85","Northicote Farm","5399","Clothing / Uniforms","11/05/2016"
"Wolverhampton City Council","http://opendatacommunities.org/id/metropolitan-district-council/wolverhampton","ASDA HOME SHOPPING","70.56","Ernest Bold Court","5411","Provisions (Not for resale)","11/05/2016"
"Wolverhampton City Council","http://opendatacommunities.org/id/metropolitan-district-council/wolverhampton","WWW.TENPIN.CO.UK","14.24","CIN/CP S17 SW Unit - Area 3B","7997","Educ Trips, Holidays, Outings, Activity","11/05/2016"
"Wolverhampton City Council","http://opendatacommunities.org/id/metropolitan-district-council/wolverhampton","G & M HALE LTD","107.35","Creative Studies Delivery Area","5992","Materials for resale","11/05/2016"
"Wolverhampton City Council","http://opendatacommunities.org/id/metropolitan-district-council/wolverhampton","REDWINGS LODGE","49.95","Emergency Duty Team","7011","Services - Supplies & Services to users","11/05/2016"
"Wolverhampton City Council","http://opendatacommunities.org/id/metropolitan-district-council/wolverhampton","TRAINLINE","203.49","Communications & Marketing - General","4112","Public Transport","10/05/2016"
"Wolverhampton City Council","http://opendatacommunities.org/id/metropolitan-district-council/wolverhampton","B&M RETAIL LTD","33.74","LAC Transitions Team","5310","Client Allowances","10/05/2016"
"Wolverhampton City Council","http://opendatacommunities.org/id/metropolitan-district-council/wolverhampton","SAIN ST MARKS","250.00","Childrens with Disabilities Team","6011","Financial Assistance In Exceptional Circ","10/05/2016"
"Wolverhampton City Council","http://opendatacommunities.org/id/metropolitan-district-council/wolverhampton","Amazon EU","11.58","Global Budgets","5969","Books","10/05/2016"
"Wolverhampton City Council","http://opendatacommunities.org/id/metropolitan-district-council/wolverhampton","Virgintrains.co.uk","20.50","Upper Pendeford Farm Childrens Home","4112","Public Transport","10/05/2016"
"Wolverhampton City Council","http://opendatacommunities.org/id/metropolitan-district-council/wolverhampton","Amazon EU","56.92","Northicote Farm","5969","Clothing / Uniforms","10/05/2016"
"Wolverhampton City Council","http://opendatacommunities.org/id/metropolitan-district-council/wolverhampton","ARGOS RETAIL GROUP","240.85","CIN/CP S17 SW Unit - Area 3B","5310","Equipment - Purchase","10/05/2016"
"Wolverhampton City Council","http://opendatacommunities.org/id/metropolitan-district-council/wolverhampton","VWO.com","41.96","City Direct","7399","Equipment - Purchase","10/05/2016"
"Wolverhampton City Council","http://opendatacommunities.org/id/metropolitan-district-council/wolverhampton","B AND Q 1243","4.50","Ernest Bold Court","5211","Equipment - R & M","10/05/2016"
"Wolverhampton City Council","http://opendatacommunities.org/id/metropolitan-district-council/wolverhampton","Amazon UK Marketplace","18.75","City Direct","5942","Books","10/05/2016"
"Wolverhampton City Council","http://opendatacommunities.org/id/metropolitan-district-council/wolverhampton","SCREWFIX DIRECT","43.42","Technician","5211","Equipment - Purchase","10/05/2016"
"Wolverhampton City Council","http://opendatacommunities.org/id/metropolitan-district-council/wolverhampton","SAINSBURYS LOC4471","2.60","Benefits","5411","Provisions (Not for resale)","10/05/2016"
"Wolverhampton City Council","http://opendatacommunities.org/id/metropolitan-district-council/wolverhampton","WWW.PSAPARTS.CO.UK","9.16","Passenger Transport - General","7372","Equipment - Purchase","10/05/2016"
"Wolverhampton City Council","http://opendatacommunities.org/id/metropolitan-district-council/wolverhampton","ARGOS RETAIL GROUP","349.99","Technical Support","5310","Equipment - Purchase","10/05/2016"
"Wolverhampton City Council","http://opendatacommunities.org/id/metropolitan-district-council/wolverhampton","THE POST OFFICE","59.50","EIP Locality 3","9402","Comms - Postage","10/05/2016"
"Wolverhampton City Council","http://opendatacommunities.org/id/metropolitan-district-council/wolverhampton","TRAINLINE","195.74","Delivery & OCE Development","4112","Public Transport","10/05/2016"
"Wolverhampton City Council","http://opendatacommunities.org/id/metropolitan-district-council/wolverhampton","Amazon UK Marketplace","12.39","Global Budgets","5942","Books","10/05/2016"
"Wolverhampton City Council","http://opendatacommunities.org/id/metropolitan-district-council/wolverhampton","Virgintrains.co.uk","83.10","Private Sector Housing","4112","Public Transport","10/05/2016"
"Wolverhampton City Council","http://opendatacommunities.org/id/metropolitan-district-council/wolverhampton","REGISTRARS OFFICE","7.00","HRA General","8299","Services - Fees and Charges","10/05/2016"
"Wolverhampton City Council","http://opendatacommunities.org/id/metropolitan-district-council/wolverhampton","TRAINLINE","119.34","Service Director City Economy","4112","Public Transport","10/05/2016"
"Wolverhampton City Council","http://opendatacommunities.org/id/metropolitan-district-council/wolverhampton","SAINSBURYS (2340)","46.08","Childrens with Disabilities Team","5411","Provisions (Not for resale)","10/05/2016"
"Wolverhampton City Council","http://opendatacommunities.org/id/metropolitan-district-council/wolverhampton","FSPRG.COM JITBIT","1369.90","Technical Support","5734","Computing - Purchase of Software","10/05/2016"
"Wolverhampton City Council","http://opendatacommunities.org/id/metropolitan-district-council/wolverhampton","CUMMINGS BROTHERS LOCK","31.67","Statutory Services (10RM)","7399","R&M - Departmental planned (external)","10/05/2016"
"Wolverhampton City Council","http://opendatacommunities.org/id/metropolitan-district-council/wolverhampton","SAINSBURYS (2340)","11.60","Benefits","5411","Provisions (Not for resale)","10/05/2016"
"Wolverhampton City Council","http://opendatacommunities.org/id/metropolitan-district-council/wolverhampton","CARESHOP","156.57","Specialist Support Service - North","5999","Cleaning Supplies and Materials","10/05/2016"
"Wolverhampton City Council","http://opendatacommunities.org/id/metropolitan-district-council/wolverhampton","B AND Q 1243","13.19","Ernest Bold Court","5211","Equipment - R & M","10/05/2016"
"Wolverhampton City Council","http://opendatacommunities.org/id/metropolitan-district-council/wolverhampton","B&M RETAIL LTD","24.97","LAC Transitions Team","5310","Client Allowances","10/05/2016"
"Wolverhampton City Council","http://opendatacommunities.org/id/metropolitan-district-council/wolverhampton","WICKES BUILDING","89.97","Black Art Movement","5211","Materials","10/05/2016"
"Wolverhampton City Council","http://opendatacommunities.org/id/metropolitan-district-council/wolverhampton","TRAINLINE","137.60","Delivery & OCE Development","4112","Public Transport","10/05/2016"
"Wolverhampton City Council","http://opendatacommunities.org/id/metropolitan-district-council/wolverhampton","Amazon UK Marketplace","83.17","Northicote Farm","5942","Clothing / Uniforms","10/05/2016"
"Wolverhampton City Council","http://opendatacommunities.org/id/metropolitan-district-council/wolverhampton","REDWINGS LODGE","59.95","CIN/CP S17 SW Unit - Area 7","7011","Services - Supplies & Services to users","10/05/2016"
"Wolverhampton City Council","http://opendatacommunities.org/id/metropolitan-district-council/wolverhampton","SAINSBURYS (2340)","115.71","Discretionary Fund","5411","Provisions (Not for resale)","10/05/2016"
"Wolverhampton City Council","http://opendatacommunities.org/id/metropolitan-district-council/wolverhampton","ASDA HOME SHOPPING","-0.07","Upper Pendeford Farm Childrens Home","5411","Provisions (Not for resale)","09/05/2016"
"Wolverhampton City Council","http://opendatacommunities.org/id/metropolitan-district-council/wolverhampton","B&M RETAIL LTD","25.99","LAC Transitions Team","5310","Equipment - Purchase","09/05/2016"
"Wolverhampton City Council","http://opendatacommunities.org/id/metropolitan-district-council/wolverhampton","Amazon UK Marketplace","35.81","School Improvement","5942","Books","09/05/2016"
"Wolverhampton City Council","http://opendatacommunities.org/id/metropolitan-district-council/wolverhampton","EVENTBRITE INC","-300.00","AES Staff Development","7399","Training Expenses","09/05/2016"
"Wolverhampton City Council","http://opendatacommunities.org/id/metropolitan-district-council/wolverhampton","LIDL UK","2.02","Ernest Bold Court","5411","Provisions (Not for resale)","09/05/2016"
"Wolverhampton City Council","http://opendatacommunities.org/id/metropolitan-district-council/wolverhampton","ASDA HOME SHOPPING","0.50","Ernest Bold Court","5411","Provisions (Not for resale)","09/05/2016"
"Wolverhampton City Council","http://opendatacommunities.org/id/metropolitan-district-council/wolverhampton","TIMPSON LTD","8.33","Meals on Wheels","7251","Equipment - R & M","09/05/2016"
"Wolverhampton City Council","http://opendatacommunities.org/id/metropolitan-district-council/wolverhampton","UNTOUCHABLES","16.25","Education Catering - General Overheads","5231","Materials","09/05/2016"
"Wolverhampton City Council","http://opendatacommunities.org/id/metropolitan-district-council/wolverhampton","EB REIMAGINING FURTHE","100.00","AES Staff Development","7399","Training Expenses","09/05/2016"
"Wolverhampton City Council","http://opendatacommunities.org/id/metropolitan-district-council/wolverhampton","IN  CLICKDIMENSIONS, L","389.48","Customer Services","7372","Computing - Purchase of Software","09/05/2016"
"Wolverhampton City Council","http://opendatacommunities.org/id/metropolitan-district-council/wolverhampton","TOOLSTATION LTD","9.27","Education Catering - General Overheads","5251","Equipment - R & M","09/05/2016"
"Wolverhampton City Council","http://opendatacommunities.org/id/metropolitan-district-council/wolverhampton","Amazon EU","119.88","Ground Maintenance East","5969","Books","09/05/2016"
"Wolverhampton City Council","http://opendatacommunities.org/id/metropolitan-district-council/wolverhampton","TOOLSTATION LTD","1.70","Meals on Wheels","5251","Equipment - R & M","09/05/2016"
"Wolverhampton City Council","http://opendatacommunities.org/id/metropolitan-district-council/wolverhampton","ASDA HOME SHOPPING","-0.89","Upper Pendeford Farm Childrens Home","5411","Provisions (Not for resale)","09/05/2016"
"Wolverhampton City Council","http://opendatacommunities.org/id/metropolitan-district-council/wolverhampton","EB SWOP SHOP AMP SOCI","5.83","WV Active Business Support","7399","Marketing \ Non-staff advertising","09/05/2016"
"Wolverhampton City Council","http://opendatacommunities.org/id/metropolitan-district-council/wolverhampton","EB REIMAGINING FURTHE","50.00","AES Staff Development","7399","Training Expenses","09/05/2016"
"Wolverhampton City Council","http://opendatacommunities.org/id/metropolitan-district-council/wolverhampton","B&M RETAIL LTD","62.65","LAC Transitions Team","5310","Equipment - Purchase","09/05/2016"
"Wolverhampton City Council","http://opendatacommunities.org/id/metropolitan-district-council/wolverhampton","EVENTBRITE INC","-50.00","AES Staff Development","7399","Equipment - Purchase","09/05/2016"
"Wolverhampton City Council","http://opendatacommunities.org/id/metropolitan-district-council/wolverhampton","ASDA HOME SHOPPING","265.17","Upper Pendeford Farm Childrens Home","5411","Provisions (Not for resale)","09/05/2016"
"Wolverhampton City Council","http://opendatacommunities.org/id/metropolitan-district-council/wolverhampton","HALFORDS 0775","66.66","Mayoral Expenses","5940","Equipment - Purchase","09/05/2016"
"Wolverhampton City Council","http://opendatacommunities.org/id/metropolitan-district-council/wolverhampton","Amazon UK Marketplace","4.75","Arbor Scheme","5942","Materials","09/05/2016"
"Wolverhampton City Council","http://opendatacommunities.org/id/metropolitan-district-council/wolverhampton","C L JONES LIMITED","846.54","Towers Outdoor Education Centre","5211","Fixtures and Fittings - Purchases","09/05/2016"
"Wolverhampton City Council","http://opendatacommunities.org/id/metropolitan-district-council/wolverhampton","SEVERN TRENT WATER","132.90","HRA General","4900","Water Charges","09/05/2016"
"Wolverhampton City Council","http://opendatacommunities.org/id/metropolitan-district-council/wolverhampton","Amazon UK Marketplace","33.29","Museum Resilience Project - ACE","5942","Equipment - Purchase","09/05/2016"
"Wolverhampton City Council","http://opendatacommunities.org/id/metropolitan-district-council/wolverhampton","EB REIMAGINING FURTHE","100.00","AES Staff Development","7399","Training Expenses","09/05/2016"
"Wolverhampton City Council","http://opendatacommunities.org/id/metropolitan-district-council/wolverhampton","ASDA HOME SHOPPING","97.54","Ernest Bold Court","5411","Provisions (Not for resale)","09/05/2016"
"Wolverhampton City Council","http://opendatacommunities.org/id/metropolitan-district-council/wolverhampton","TESCO STORES 5503","4.98","Ernest Bold Court","5411","Provisions (Not for resale)","09/05/2016"
"Wolverhampton City Council","http://opendatacommunities.org/id/metropolitan-district-council/wolverhampton","ARGOS LTD","491.49","LAC Transitions Team","5310","Equipment - Purchase","09/05/2016"
"Wolverhampton City Council","http://opendatacommunities.org/id/metropolitan-district-council/wolverhampton","EB REIMAGINING FURTHE","50.00","AES Staff Development","7399","Training Expenses","09/05/2016"
"Wolverhampton City Council","http://opendatacommunities.org/id/metropolitan-district-council/wolverhampton","PRIMARK","25.50","LAC Transitions Team","5651","Client Allowances","09/05/2016"
"Wolverhampton City Council","http://opendatacommunities.org/id/metropolitan-district-council/wolverhampton","ASDA SUPERSTORE","108.68","LAC Transitions Team","5411","Provisions (Not for resale)","09/05/2016"
"Wolverhampton City Council","http://opendatacommunities.org/id/metropolitan-district-council/wolverhampton","EB REIMAGINING FURTHE","50.00","AES Staff Development","7399","Training Expenses","09/05/2016"
"Wolverhampton City Council","http://opendatacommunities.org/id/metropolitan-district-council/wolverhampton","Amazon EU","24.97","Museum Resilience Project - ACE","5969","Equipment - Purchase","09/05/2016"
"Wolverhampton City Council","http://opendatacommunities.org/id/metropolitan-district-council/wolverhampton","B&M RETAIL LTD","7.99","LAC Transitions Team","5310","Equipment - Purchase","09/05/2016"
"Wolverhampton City Council","http://opendatacommunities.org/id/metropolitan-district-council/wolverhampton","Amazon UK Marketplace","18.96","Planning","5942","Books","06/05/2016"
"Wolverhampton City Council","http://opendatacommunities.org/id/metropolitan-district-council/wolverhampton","MAPLIN 268","74.99","Central Baths","5732","Equipment - Purchase","06/05/2016"
"Wolverhampton City Council","http://opendatacommunities.org/id/metropolitan-district-council/wolverhampton","TRAINLINE","31.87","LAC Team","4112","Public Transport","06/05/2016"
"Wolverhampton City Council","http://opendatacommunities.org/id/metropolitan-district-council/wolverhampton","HMRC PAYMENT","177.27","Civic & Wulfrun In-house Promotions","9311","Services - Fees and Charges","06/05/2016"
"Wolverhampton City Council","http://opendatacommunities.org/id/metropolitan-district-council/wolverhampton","HOTELS COM129473144887","239.80","CIN - Referral Hub","4722","No Recourse to Public Funds","06/05/2016"
"Wolverhampton City Council","http://opendatacommunities.org/id/metropolitan-district-council/wolverhampton","YOUNGS SHOE REPAIRS LI","29.50","Wolverhampton Indoor and Open Market","7251","Fixtures and Fittings - R&M","06/05/2016"
"Wolverhampton City Council","http://opendatacommunities.org/id/metropolitan-district-council/wolverhampton","WEST MID TRAVEL","138.20","Youth Offending Team","4131","Public Transport","06/05/2016"
"Wolverhampton City Council","http://opendatacommunities.org/id/metropolitan-district-council/wolverhampton","WILKO RETAIL LIMIT","2.45","Service Wide","5722","Equipment - Purchase","06/05/2016"
"Wolverhampton City Council","http://opendatacommunities.org/id/metropolitan-district-council/wolverhampton","TRAINLINE","64.01","Black Art Movement","4112","Public Transport","06/05/2016"
"Wolverhampton City Council","http://opendatacommunities.org/id/metropolitan-district-council/wolverhampton","TEC AV LTD","52.00","Technical Support","1731","Services - Fees and Charges","06/05/2016"
"Wolverhampton City Council","http://opendatacommunities.org/id/metropolitan-district-council/wolverhampton","SAINSBURYS (2340)","90.36","Music Support Team","5411","Stationery","06/05/2016"
"Wolverhampton City Council","http://opendatacommunities.org/id/metropolitan-district-council/wolverhampton","CENTURY ELECTRICAL WHO","42.00","Caretakers Community Centre","5065","R&M - Departmental planned (external)","06/05/2016"
"Wolverhampton City Council","http://opendatacommunities.org/id/metropolitan-district-council/wolverhampton","PAYPAL  RESTORATIVE","250.00","Youth Offending Team","8398","Services - Supplies & Services to users","06/05/2016"
"Wolverhampton City Council","http://opendatacommunities.org/id/metropolitan-district-council/wolverhampton","PREMIER INN","77.98","Adoption and Residence Team & Allowances","3811","Accommodation Costs","06/05/2016"
"Wolverhampton City Council","http://opendatacommunities.org/id/metropolitan-district-council/wolverhampton","piktochar","28.92","City Marketing (Place)","5942","Computing - Purchase of Software","06/05/2016"
"Wolverhampton City Council","http://opendatacommunities.org/id/metropolitan-district-council/wolverhampton","Amazon EU","24.17","Maintenance of Exhibits","5969","Equipment - Purchase","06/05/2016"
"Wolverhampton City Council","http://opendatacommunities.org/id/metropolitan-district-council/wolverhampton","BT PAY BY PHONE","62.97","Makers Dozen","4814","Comms - Telephone Call charges","06/05/2016"
"Wolverhampton City Council","http://opendatacommunities.org/id/metropolitan-district-council/wolverhampton","Amazon EU","19.77","Ground Maintenance Overheads","5969","Equipment - Purchase","06/05/2016"
"Wolverhampton City Council","http://opendatacommunities.org/id/metropolitan-district-council/wolverhampton","WICKES","96.95","Street Lighting Maintenance","5211","Materials","06/05/2016"
"Wolverhampton City Council","http://opendatacommunities.org/id/metropolitan-district-council/wolverhampton","SCREWFIX DIRECT","45.99","Street Lighting Maintenance","5211","Materials","06/05/2016"
"Wolverhampton City Council","http://opendatacommunities.org/id/metropolitan-district-council/wolverhampton","Virgintrains.co.uk","71.60","Planning","4112","Public Transport","06/05/2016"
"Wolverhampton City Council","http://opendatacommunities.org/id/metropolitan-district-council/wolverhampton","TRAINLINE","164.58","Learning Disabilities Assmt and Care Mgt","4112","Public Transport","06/05/2016"
"Wolverhampton City Council","http://opendatacommunities.org/id/metropolitan-district-council/wolverhampton","Amazon UK Marketplace","-8.32","Ground Maintenance Overheads","5999","Materials","06/05/2016"
"Wolverhampton City Council","http://opendatacommunities.org/id/metropolitan-district-council/wolverhampton","SAINSBURYS 2040","30.00","Ernest Bold Court","5411","Provisions (Not for resale)","06/05/2016"
"Wolverhampton City Council","http://opendatacommunities.org/id/metropolitan-district-council/wolverhampton","TRAINLINE","67.42","LAC Admin Team","4112","Client Allowances","06/05/2016"
"Wolverhampton City Council","http://opendatacommunities.org/id/metropolitan-district-council/wolverhampton","BRITISH HEART FOUNDATI","498.33","LAC Transitions Team","8398","Client Allowances","06/05/2016"
"Wolverhampton City Council","http://opendatacommunities.org/id/metropolitan-district-council/wolverhampton","SPAR SIOP TANDDERWEN","202.20","Towers Outdoor Education Centre","5411","Provisions (Not for resale)","05/05/2016"
"Wolverhampton City Council","http://opendatacommunities.org/id/metropolitan-district-council/wolverhampton","O E METCALFE","310.75","Towers Outdoor Education Centre","5499","Provisions (Not for resale)","05/05/2016"
"Wolverhampton City Council","http://opendatacommunities.org/id/metropolitan-district-council/wolverhampton","EE LIMITED R501","30.00","School Crossing Patrol","4812","Comms - Mobile Telephones","05/05/2016"
"Wolverhampton City Council","http://opendatacommunities.org/id/metropolitan-district-council/wolverhampton","SAINSBURYS SACAT 2040","50.00","Duke Street Bungalows","5411","Provisions (Not for resale)","05/05/2016"
"Wolverhampton City Council","http://opendatacommunities.org/id/metropolitan-district-council/wolverhampton","Amazon UK Marketplace","3.97","Museum Resilience Project - ACE","5942","Equipment - Purchase","05/05/2016"
"Wolverhampton City Council","http://opendatacommunities.org/id/metropolitan-district-council/wolverhampton","SAINSBURYS 2040","21.50","Safeguarding Board - Adults","5411","Catering","05/05/2016"
"Wolverhampton City Council","http://opendatacommunities.org/id/metropolitan-district-council/wolverhampton","POST OFFICE COUNTER","55.75","LAC Team","9402","Services - Fees and Charges","05/05/2016"
"Wolverhampton City Council","http://opendatacommunities.org/id/metropolitan-district-council/wolverhampton","BRITANNIA","45.42","Mental Health Assessment & Care Mgmt","7011","Services - Supplies & Services to users","05/05/2016"
"Wolverhampton City Council","http://opendatacommunities.org/id/metropolitan-district-council/wolverhampton","Virgintrains.co.uk","190.40","Fostering Team & Allowances","4112","Public Transport","05/05/2016"
"Wolverhampton City Council","http://opendatacommunities.org/id/metropolitan-district-council/wolverhampton","WM MORRISONS","6.05","Safeguarding Board - Adults","5411","Catering","05/05/2016"
"Wolverhampton City Council","http://opendatacommunities.org/id/metropolitan-district-council/wolverhampton","DIAMOND PUBLISHING LTD","75.00","Civic Halls Non Direct Management A/C","2741","Publications","05/05/2016"
"Wolverhampton City Council","http://opendatacommunities.org/id/metropolitan-district-council/wolverhampton","WWW.MDNSUPPLIES.CO.UK","62.90","Civic Centre","5085","Equipment - Purchase","05/05/2016"
"Wolverhampton City Council","http://opendatacommunities.org/id/metropolitan-district-council/wolverhampton","WEST COAST TRAINS","6.90","CIN/CP S17 SW Unit - Area 3B","4112","Public Transport","05/05/2016"
"Wolverhampton City Council","http://opendatacommunities.org/id/metropolitan-district-council/wolverhampton","HN NUTTALL LTD","873.72","Towers Outdoor Education Centre","5085","Provisions (Not for resale)","05/05/2016"
"Wolverhampton City Council","http://opendatacommunities.org/id/metropolitan-district-council/wolverhampton","TRAINLINE","223.07","Psychology Service","4112","Public Transport","05/05/2016"
"Wolverhampton City Council","http://opendatacommunities.org/id/metropolitan-district-council/wolverhampton","FOTOSPEED","275.27","Museum Resilience Project - ACE","5946","Equipment - Purchase","05/05/2016"
"Wolverhampton City Council","http://opendatacommunities.org/id/metropolitan-district-council/wolverhampton","C G MURRAY & SON L","27.00","Pest Control","5912","Materials","05/05/2016"
"Wolverhampton City Council","http://opendatacommunities.org/id/metropolitan-district-council/wolverhampton","Amazon UK Marketplace","10.83","Independent Living Service","5942","Books","05/05/2016"
"Wolverhampton City Council","http://opendatacommunities.org/id/metropolitan-district-council/wolverhampton","ONE STOP 1009","7.68","MAST 1 - Deansfield","5411","Comms - Postage","05/05/2016"
"Wolverhampton City Council","http://opendatacommunities.org/id/metropolitan-district-council/wolverhampton","HM PASSPORT OFFICE","49.00","Childrens with Disabilities Team","9399","Services - Fees and Charges","05/05/2016"
"Wolverhampton City Council","http://opendatacommunities.org/id/metropolitan-district-council/wolverhampton","TRAINLINE","47.63","Older People Commissioning","4112","Public Transport","05/05/2016"
"Wolverhampton City Council","http://opendatacommunities.org/id/metropolitan-district-council/wolverhampton","BOOKWHEN","9.00","Craftplay","7372","Computing - Purchase of Software","05/05/2016"
"Wolverhampton City Council","http://opendatacommunities.org/id/metropolitan-district-council/wolverhampton","Virgintrains.co.uk","190.40","Communications & Marketing - General","4112","Public Transport","05/05/2016"
"Wolverhampton City Council","http://opendatacommunities.org/id/metropolitan-district-council/wolverhampton","LOYD WEDNESFIELD WOLVE","50.00","Duke Street Bungalows","6011","Financial Assistance In Exceptional Circ","05/05/2016"
"Wolverhampton City Council","http://opendatacommunities.org/id/metropolitan-district-council/wolverhampton","TRAINLINE","44.98","HRA General","4112","Public Transport","05/05/2016"
"Wolverhampton City Council","http://opendatacommunities.org/id/metropolitan-district-council/wolverhampton","WP-HEMMING GROUP L","498.00","Digital Transformation Programme","7399","Conference Expenses","05/05/2016"
"Wolverhampton City Council","http://opendatacommunities.org/id/metropolitan-district-council/wolverhampton","ALDI","33.45","Economic Inclusion","5411","Provisions (Not for resale)","05/05/2016"
"Wolverhampton City Council","http://opendatacommunities.org/id/metropolitan-district-council/wolverhampton","ARGOS LTD","83.32","CIN/CP S17 SW Unit - Area 3A","5310","Furniture","05/05/2016"
"Wolverhampton City Council","http://opendatacommunities.org/id/metropolitan-district-council/wolverhampton","TRAINLINE","49.37","Performance & Quality","4112","Public Transport","05/05/2016"
"Wolverhampton City Council","http://opendatacommunities.org/id/metropolitan-district-council/wolverhampton","SAIN WEDNESFIELD","50.00","Duke Street Bungalows","6011","Financial Assistance In Exceptional Circ","05/05/2016"
"Wolverhampton City Council","http://opendatacommunities.org/id/metropolitan-district-council/wolverhampton","CALUMET MANCHESTER","369.75","Civic Halls Non Direct Management A/C","5946","Computing - Purchase of Software","05/05/2016"
"Wolverhampton City Council","http://opendatacommunities.org/id/metropolitan-district-council/wolverhampton","Cross Country","45.20","Corporate Policy and Equalities","4112","Public Transport","05/05/2016"
"Wolverhampton City Council","http://opendatacommunities.org/id/metropolitan-district-council/wolverhampton","GREENLAND GARDEN C","85.42","Northicote Farm","5261","Clothing / Uniforms","05/05/2016"
"Wolverhampton City Council","http://opendatacommunities.org/id/metropolitan-district-council/wolverhampton","POLLSTAR UK LTD","459.00","Civic Halls Non Direct Management A/C","5965","Subscriptions","05/05/2016"
"Wolverhampton City Council","http://opendatacommunities.org/id/metropolitan-district-council/wolverhampton","TIMPSON LTD","49.00","Service Wide","7251","Fixtures and Fittings - R&M","05/05/2016"
"Wolverhampton City Council","http://opendatacommunities.org/id/metropolitan-district-council/wolverhampton","STERMAT CAR AND VAN HI","940.00","Towers Outdoor Education Centre","5521","Hire of Vehicles","05/05/2016"
"Wolverhampton City Council","http://opendatacommunities.org/id/metropolitan-district-council/wolverhampton","ASDA SUPERSTORE","2.09","Civic Centre Catering","5411","Provisions (Not for resale)","05/05/2016"
"Wolverhampton City Council","http://opendatacommunities.org/id/metropolitan-district-council/wolverhampton","PAYPAL  INCITEPUBLI","160.00","Communications & Marketing - General","8931","Conference Expenses","05/05/2016"
"Wolverhampton City Council","http://opendatacommunities.org/id/metropolitan-district-council/wolverhampton","WEST COAST TRAINS","-48.60","CIN/CP S17 SW Unit - Area 3B","4112","Public Transport","05/05/2016"
"Wolverhampton City Council","http://opendatacommunities.org/id/metropolitan-district-council/wolverhampton","WWW.LOCAL.GOV.UK","414.00","School Improvement","7399","Conference Expenses","04/05/2016"
"Wolverhampton City Council","http://opendatacommunities.org/id/metropolitan-district-council/wolverhampton","SAINSBURYS SACAT (2340","29.38","Mayoral Expenses","5411","Hospitality","04/05/2016"
"Wolverhampton City Council","http://opendatacommunities.org/id/metropolitan-district-council/wolverhampton","Amazon UK Marketplace","1.51","LAC Transitions Team","5942","Client Allowances","04/05/2016"
"Wolverhampton City Council","http://opendatacommunities.org/id/metropolitan-district-council/wolverhampton","Cross Country","159.50","School Improvement","4112","Public Transport","04/05/2016"
"Wolverhampton City Council","http://opendatacommunities.org/id/metropolitan-district-council/wolverhampton","WICKES","20.82","Northicote Farm","5211","Materials","04/05/2016"
"Wolverhampton City Council","http://opendatacommunities.org/id/metropolitan-district-council/wolverhampton","NATWEST BANK","50.00","Court of Protection, Funerals Prot Prop","6011","Services - Professional Fees","04/05/2016"
"Wolverhampton City Council","http://opendatacommunities.org/id/metropolitan-district-council/wolverhampton","BRITANNIA","55.42","CIN/CP S17 SW Unit - Area 5","7011","Accommodation Costs","04/05/2016"
"Wolverhampton City Council","http://opendatacommunities.org/id/metropolitan-district-council/wolverhampton","Amazon UK Marketplace","7.37","City Direct","5942","Books","04/05/2016"
"Wolverhampton City Council","http://opendatacommunities.org/id/metropolitan-district-council/wolverhampton","ASDA HOME SHOPPING","-1.01","Upper Pendeford Farm Childrens Home","5411","Provisions (Not for resale)","04/05/2016"
"Wolverhampton City Council","http://opendatacommunities.org/id/metropolitan-district-council/wolverhampton","FACEBOOK EQUDN8AB92","586.70","Communications & Marketing - General","7311","Marketing \ Non-staff advertising","04/05/2016"
"Wolverhampton City Council","http://opendatacommunities.org/id/metropolitan-district-council/wolverhampton","G & M HALE LTD","111.75","Discretionary Fund","5992","Materials","04/05/2016"
"Wolverhampton City Council","http://opendatacommunities.org/id/metropolitan-district-council/wolverhampton","HARLECH FOODSERVICE LT","169.93","Towers Outdoor Education Centre","5422","Provisions (Not for resale)","04/05/2016"
"Wolverhampton City Council","http://opendatacommunities.org/id/metropolitan-district-council/wolverhampton","E.ON ENERGY SOLUTIONS","200.00","CIN/CP S17 SW Unit - Area 5","4900","Electricity","04/05/2016"
"Wolverhampton City Council","http://opendatacommunities.org/id/metropolitan-district-council/wolverhampton","ASDA HOME SHOPPING","224.64","Upper Pendeford Farm Childrens Home","5411","Provisions (Not for resale)","04/05/2016"
"Wolverhampton City Council","http://opendatacommunities.org/id/metropolitan-district-council/wolverhampton","Amazon EU","8.46","Telecare","5969","Equipment - Purchase","04/05/2016"
"Wolverhampton City Council","http://opendatacommunities.org/id/metropolitan-district-council/wolverhampton","STEVEN GIBSON LTD","541.66","Towers Outdoor Education Centre","5732","Equipment - Purchase","04/05/2016"
"Wolverhampton City Council","http://opendatacommunities.org/id/metropolitan-district-council/wolverhampton","THE CHILTERN RLYWY","50.00","Public Health Support Costs","4112","Public Transport","04/05/2016"
"Wolverhampton City Council","http://opendatacommunities.org/id/metropolitan-district-council/wolverhampton","REGISTRARS OFFICE","27.00","Head of Service - CINCP","8299","Services - Professional Fees","04/05/2016"
"Wolverhampton City Council","http://opendatacommunities.org/id/metropolitan-district-council/wolverhampton","Amazon UK Marketplace","2.78","Independent Living Service","5942","Books","04/05/2016"
"Wolverhampton City Council","http://opendatacommunities.org/id/metropolitan-district-council/wolverhampton","G & M HALE (SUNDRIES)","10.55","Discretionary Fund","5992","Materials","04/05/2016"
"Wolverhampton City Council","http://opendatacommunities.org/id/metropolitan-district-council/wolverhampton","ASDA HOME SHOPPING","-0.34","Ernest Bold Court","5411","Provisions (Not for resale)","04/05/2016"
"Wolverhampton City Council","http://opendatacommunities.org/id/metropolitan-district-council/wolverhampton","FACEBOOK GQUDN8AB92","13.40","Communications & Marketing - General","7311","Marketing \ Non-staff advertising","04/05/2016"
"Wolverhampton City Council","http://opendatacommunities.org/id/metropolitan-district-council/wolverhampton","TESCO STORES 5194","265.77","Towers Outdoor Education Centre","5411","Provisions (Not for resale)","04/05/2016"
"Wolverhampton City Council","http://opendatacommunities.org/id/metropolitan-district-council/wolverhampton","G & M HALE LTD","135.25","Creative Studies Delivery Area","5992","Equipment - Purchase","04/05/2016"
"Wolverhampton City Council","http://opendatacommunities.org/id/metropolitan-district-council/wolverhampton","ASDA HOME SHOPPING","86.86","Ernest Bold Court","5411","Provisions (Not for resale)","04/05/2016"
"Wolverhampton City Council","http://opendatacommunities.org/id/metropolitan-district-council/wolverhampton","WOLVES CC","111.94","CIN/CP S17 SW Unit - Area 5","9399","Services - Fees and Charges","04/05/2016"
"Wolverhampton City Council","http://opendatacommunities.org/id/metropolitan-district-council/wolverhampton","Amazon UK Marketplace","6.99","LAC Admin Team","5942","Client Allowances","04/05/2016"
"Wolverhampton City Council","http://opendatacommunities.org/id/metropolitan-district-council/wolverhampton","TRAINLINE","18.72","Legal Services","4112","Public Transport","04/05/2016"
"Wolverhampton City Council","http://opendatacommunities.org/id/metropolitan-district-council/wolverhampton","HSBC INVOICE FINAN","282.76","Towers Outdoor Education Centre","6012","Laundry Expenses","04/05/2016"
"Wolverhampton City Council","http://opendatacommunities.org/id/metropolitan-district-council/wolverhampton","WWW.NISBETS.COM","-44.25","Upper Pendeford Farm Childrens Home","5964","Clothing / Uniforms","04/05/2016"
"Wolverhampton City Council","http://opendatacommunities.org/id/metropolitan-district-council/wolverhampton","Amazon EU","15.47","LAC Transitions Team","5969","Client Allowances","04/05/2016"
"Wolverhampton City Council","http://opendatacommunities.org/id/metropolitan-district-council/wolverhampton","TRAINLINE","24.23","Legal Services","4112","Public Transport","04/05/2016"
"Wolverhampton City Council","http://opendatacommunities.org/id/metropolitan-district-council/wolverhampton","CHEMSOL CYMRU LTD","156.46","Towers Outdoor Education Centre","5199","Fixtures and Fittings - Purchases","04/05/2016"
"Wolverhampton City Council","http://opendatacommunities.org/id/metropolitan-district-council/wolverhampton","Virgintrains.co.uk","30.65","LAC Team","4112","Public Transport","04/05/2016"
"Wolverhampton City Council","http://opendatacommunities.org/id/metropolitan-district-council/wolverhampton","THE TRAVELGATEWAY LTD","10.00","Mayoral Expenses","4722","Public Transport","04/05/2016"
"Wolverhampton City Council","http://opendatacommunities.org/id/metropolitan-district-council/wolverhampton","SAINSBURYS (2340)","45.75","Discretionary Fund","5411","Provisions (Not for resale)","04/05/2016"
"Wolverhampton City Council","http://opendatacommunities.org/id/metropolitan-district-council/wolverhampton","G & M HALE (SUNDRIES)","29.65","Creative Studies Delivery Area","5992","Equipment - Purchase","04/05/2016"
"Wolverhampton City Council","http://opendatacommunities.org/id/metropolitan-district-council/wolverhampton","WH SMITH","7.04","Duke Street Bungalows","5994","Stationery","03/05/2016"
"Wolverhampton City Council","http://opendatacommunities.org/id/metropolitan-district-council/wolverhampton","E01350800000000","10.00","Ernest Bold Court","6011","Educ Trips, Holidays, Outings, Activity","03/05/2016"
"Wolverhampton City Council","http://opendatacommunities.org/id/metropolitan-district-council/wolverhampton","DRI TechSmith","165.78","Strategic ICTS (ICT Serv Budget)","5734","Computing - Purchase of Software","02/05/2016"
"Wolverhampton City Council","http://opendatacommunities.org/id/metropolitan-district-council/wolverhampton","GRO HM PASSPORT OFFICE","23.40","Legal Services","9399","Services - Fees and Charges","02/05/2016"
"Wolverhampton City Council","http://opendatacommunities.org/id/metropolitan-district-council/wolverhampton","Virgintrains.co.uk","57.40","Fostering Team & Allowances","4112","Public Transport","02/05/2016"
"Wolverhampton City Council","http://opendatacommunities.org/id/metropolitan-district-council/wolverhampton","POST OFFICE COUNTER","9.15","CIN/CP S17 SW Unit - Area 4","9402","Comms - Postage","02/05/2016"
"Wolverhampton City Council","http://opendatacommunities.org/id/metropolitan-district-council/wolverhampton","Amazon UK Marketplace","21.11","Customer Services","5942","Books","02/05/2016"
"Wolverhampton City Council","http://opendatacommunities.org/id/metropolitan-district-council/wolverhampton","CRAFTYARTS.CO.UK","16.57","Education And Access","5970","Materials","02/05/2016"
"Wolverhampton City Council","http://opendatacommunities.org/id/metropolitan-district-council/wolverhampton","ASDA HOME SHOPPING","97.49","Ernest Bold Court","5411","Provisions (Not for resale)","02/05/2016"
"Wolverhampton City Council","http://opendatacommunities.org/id/metropolitan-district-council/wolverhampton","ARGOS LTD","54.97","CIN/CP S17 SW Unit - Area 3A","5310","Furniture","02/05/2016"
"Wolverhampton City Council","http://opendatacommunities.org/id/metropolitan-district-council/wolverhampton","BRITANNIA","61.67","Mental Health Assessment & Care Mgmt","7011","Services - Supplies & Services to users","02/05/2016"
"Wolverhampton City Council","http://opendatacommunities.org/id/metropolitan-district-council/wolverhampton","PREMIER INN","78.32","Workforce Development","3811","Accommodation Costs","02/05/2016"
"Wolverhampton City Council","http://opendatacommunities.org/id/metropolitan-district-council/wolverhampton","WWW.THESTICKERFACTORY.","51.12","Pupil Premium","7399","Equipment - Purchase","02/05/2016"
"Wolverhampton City Council","http://opendatacommunities.org/id/metropolitan-district-council/wolverhampton","E01577600000000","20.00","MAST 3 - Graiseley","6011","Financial Assistance In Exceptional Circ","02/05/2016"
"Wolverhampton City Council","http://opendatacommunities.org/id/metropolitan-district-council/wolverhampton","Virgintrains.co.uk","250.00","LAC Team","4112","Public Transport","02/05/2016"
"Wolverhampton City Council","http://opendatacommunities.org/id/metropolitan-district-council/wolverhampton","APPLE ONLINE STORE GBP","990.00","Art Gallery","5732","Equipment - Purchase","02/05/2016"
"Wolverhampton City Council","http://opendatacommunities.org/id/metropolitan-district-council/wolverhampton","FACEBOOK HKRC59SB92","1.76","Communications & Marketing - General","7311","Marketing \ Non-staff advertising","02/05/2016"
"Wolverhampton City Council","http://opendatacommunities.org/id/metropolitan-district-council/wolverhampton","POUNDWORLD RETAIL","1.67","Revenues","5310","Equipment - Health and Safety","02/05/2016"
"Wolverhampton City Council","http://opendatacommunities.org/id/metropolitan-district-council/wolverhampton","TRAINLINE","34.43","Delivery & OCE Development","4112","Public Transport","02/05/2016"
"Wolverhampton City Council","http://opendatacommunities.org/id/metropolitan-district-council/wolverhampton","ARGOS LTD","59.99","Children's Village Children Centre","5310","Equipment - Purchase","02/05/2016"
"Wolverhampton City Council","http://opendatacommunities.org/id/metropolitan-district-council/wolverhampton","BRITANNIA","61.67","Mental Health Assessment & Care Mgmt","7011","Services - Supplies & Services to users","02/05/2016"
"Wolverhampton City Council","http://opendatacommunities.org/id/metropolitan-district-council/wolverhampton","VUE ITCERTIFICATIONVUE","118.80","Customer Services","8299","Training Expenses","02/05/2016"
"Wolverhampton City Council","http://opendatacommunities.org/id/metropolitan-district-council/wolverhampton","THE RANGE","2.49","Ernest Bold Court","5311","Equipment - Purchase","02/05/2016"
"Wolverhampton City Council","http://opendatacommunities.org/id/metropolitan-district-council/wolverhampton","FACEBOOK 3NA4H9A4U2","45.76","Civic Halls Non Direct Management A/C","7311","Marketing \ Non-staff advertising","02/05/2016"
"Wolverhampton City Council","http://opendatacommunities.org/id/metropolitan-district-council/wolverhampton","OYSTER RENEW WEB","-20.00","Legal Services","4112","Public Transport","02/05/2016"
"Wolverhampton City Council","http://opendatacommunities.org/id/metropolitan-district-council/wolverhampton","FACEBOOK GKRC59SB92","147.58","Communications & Marketing - General","7311","Marketing \ Non-staff advertising","02/05/2016"
"Wolverhampton City Council","http://opendatacommunities.org/id/metropolitan-district-council/wolverhampton","PMC ELECTRICS LIMI","-38.79","Parking Enforcement","4812","Equipment - Purchase","02/05/2016"
"Wolverhampton City Council","http://opendatacommunities.org/id/metropolitan-district-council/wolverhampton","123-REG.CO.UK","92.35","Customer Services","4816","Computing - Purchase of Software","02/05/2016"
"Wolverhampton City Council","http://opendatacommunities.org/id/metropolitan-district-council/wolverhampton","GREENHOUS VOLKSWAGEN V","88.82","Fleet Management","5521","Equipment - Purchase","02/05/2016"
"Wolverhampton City Council","http://opendatacommunities.org/id/metropolitan-district-council/wolverhampton","FACEBOOK 2C9ZK8NA92","5.58","Communications & Marketing - General","7311","Marketing \ Non-staff advertising","02/05/2016"
"Wolverhampton City Council","http://opendatacommunities.org/id/metropolitan-district-council/wolverhampton","CUMMINGS BROTHERS LOCK","42.50","Caretakers Community Centre","7399","R&M - Departmental planned (external)","02/05/2016"
"Wolverhampton City Council","http://opendatacommunities.org/id/metropolitan-district-council/wolverhampton","ASDA HOME SHOPPING","-0.43","Ernest Bold Court","5411","Provisions (Not for resale)","02/05/2016"
"Wolverhampton City Council","http://opendatacommunities.org/id/metropolitan-district-council/wolverhampton","Amazon EU","17.25","Pupil Premium","5969","Equipment - Purchase","02/05/2016"
"Wolverhampton City Council","http://opendatacommunities.org/id/metropolitan-district-council/wolverhampton","Amazon EU","16.62","Art Gallery","5969","Equipment - Purchase","02/05/2016"
"Wolverhampton City Council","http://opendatacommunities.org/id/metropolitan-district-council/wolverhampton","THE CONSORTIUM/WMS","119.57","Education And Access","5968","Subscriptions","02/05/2016"
"Wolverhampton City Council","http://opendatacommunities.org/id/metropolitan-district-council/wolverhampton","123-REG.CO.UK","236.89","Central Baths","4816","Computing - Purchase of Software","02/05/2016"
"Wolverhampton City Council","http://opendatacommunities.org/id/metropolitan-district-council/wolverhampton","TERMINUS SERVICE STATI","10.00","College of Further Education","5541","Petrol","02/05/2016"
"Wolverhampton City Council","http://opendatacommunities.org/id/metropolitan-district-council/wolverhampton","Amazon UK Marketplace","13.27","Ground Maintenance East","5942","Materials","02/05/2016"
"Wolverhampton City Council","http://opendatacommunities.org/id/metropolitan-district-council/wolverhampton","Amazon UK Marketplace","55.80","Strategic ICTS (ICT Serv Budget)","5942","Computing - Purchase of Hardware","02/05/2016"
"Wolverhampton City Council","http://opendatacommunities.org/id/metropolitan-district-council/wolverhampton","Virgintrains.co.uk","8.50","Children & Young People Support Costs","4112","Public Transport","02/05/2016"
"Wolverhampton City Council","http://opendatacommunities.org/id/metropolitan-district-council/wolverhampton","FACEBOOK WMG5J8AB92","594.80","Communications & Marketing - General","7311","Marketing \ Non-staff advertising","02/05/2016"
